Workbook

Sheet 5. 2015-2020 LRAM
AA5: EB-2021-0020
B14: Legend | C14: User Inputs (Green)
C15: Auto Populated Cells (White)
C16: Instructions (Grey)
B18: Instructions | C18: 1. LDCs can apply for disposition of LRAMVA amounts at any time, but at a minimum, must do so as part of a cost of service (COS) application. The following LRAMVA work forms apply to LDCs that need to recover lost revenues from the 2015-2020 period. Please input or manually link the savings, adjustments and program savings persistence data in these tables from the LDC's Persistence Reports provided by the IESO (in Tab 7). As noted earlier, persistence data is available upon request from the IESO. Please also be advised that the same rate classes (of up to 14) are carried over from the Summary Tab 1.
C19: 2. Please ensure that the IESO verified savings adjustments apply back to the program year it relates to. For example, savings adjustments related to 2016 programs that were reported by the IESO in 2017 should be included in the 2016 program savings table. In order for persisting savings to be claimed in future years, past year's initiative level savings results need to be filled out in the tables below. If the IESO adjustments were made available to the LDC after the LRAMVA was approved, the persistence of those savings adjustments in the future can be claimed as approved LRAMVA amounts are considered to be final.
C20: 3. The work forms below include the monthly multipliers for most programs in order to claim demand savings from energy efficiency programs, consistent with the monthly multipliers indicated in the OEB's updated LRAM policy related to peak demand savings in EB-2016-0182. Demand Response (DR3) savings should generally not be included with the LRAMVA calculation, unless suported by empirical evidence. LDCs are requested to confirm the monthly multipliers for all programs each year as placeholder values are provided. If a different monthly multiplier is used, please include rationale in Tab 1-a and highlight the new multiplier that has been used.
C21: 4. LDC are requested to input the applicable rate class allocation percentages to allocate actual savings to the rate classes. The generic template currently includes the same allocation percentage for program savings and its savings adjustments. If a different allocation is proposed for savings adjustments, LDCs must provide supporting rationale in Tab 1-a and highlight the change.
C22: 5. The persistence of future savings is expected to be included in the distributor's load forecast after re-basing. LDCs are requested to delete the applicable savings persistence rows (auto-calculated after the LRAMVA totals for the year) if future year's persistence of savings is already captured in the updated load forecast. Please also provide assumptions about the years in which persistence is captured in the load forecast calculation in the "Notes" section below each table.
B24: Tables | C24: Table 5-a. 2015 Lost Revenues
C25: Table 5-b. 2016 Lost Revenues
C26: Table 5-c. 2017 Lost Revenues
C27: Table 5-d. 2018 Lost Revenues
C28: Table 5-e. 2019 Lost Revenues
C29: Table 5-f. 2020 Lost Revenues
B33: Table 5-a. 2015 Lost Revenues Work Form
B34: Program | C34: Results Status | D34: Net Energy Savings (kWh) | E34: Net Energy Savings Persistence (kWh) | N34: Monthly Multiplier | O34: Net Demand Savings (kW) | P34: Net Peak Demand Savings Persistence (kW) | Y34: Rate Allocations for LRAMVA
D35: 2015 | E35: 2016 | F35: 2017 | G35: 2018 | H35: 2019 | I35: 2020 | J35: 2021 | K35: 2022 | L35: 2023 | M35: 2024 | O35: 2015 | P35: 2016 | Q35: 2017 | R35: 2018 | S35: 2019 | T35: 2020 | U35: 2021 | V35: 2022 | W35: 2023 | X35: 2024 | Y35: Residential | Z35: GS<50 kW | AA35: GS>50 kW | AB35: Streetlights | AC35: Unmetered Scattered Load | AM35: Total
B36: Legacy Framework | Y36: kWh | Z36: kWh | AA36: kWh | AB36: kWh | AC36: KWh | AD36: 0 | AE36: 0 | AF36: 0 | AG36: 0 | AH36: 0 | AI36: 0 | AJ36: 0 | AK36: 0 | AL36: 0
B37: Residential Program
A38: 1 | B38: Coupon Initiative | C38: Verified | D38: 40747.33786 | E38: 40384.40059 | F38: 40384.40059 | G38: 40384.40059 | H38: 40384.40059 | I38: 40384.40059 | J38: 40384.40059 | K38: 40373.4263 | L38: 40373.4263 | M38: 40373.4263 | O38: 2.595545284 | P38: 2.572761063 | Q38: 2.572761063 | R38: 2.572761063 | S38: 2.572761063 | T38: 2.572761063 | U38: 2.572761063 | V38: 2.57150829 | W38: 2.57150829 | X38: 2.57150829 | Y38: 1 | Z38: 0 | AA38: 0 | AM38: =SUM(Y38:AL38) -> 1
B39: Adjustment to 2015 savings | C39: True-up | D39: 0 | E39: 0 | F39: 0 | G39: 0 | H39: 0 | I39: 0 | J39: 0 | K39: 0 | L39: 0 | M39: 0 | O39: 0 | P39: 0 | Q39: 0 | R39: 0 | S39: 0 | T39: 0 | U39: 0 | V39: 0 | W39: 0 | X39: 0 | Y39: 1 | Z39: 0 | AA39: 0 | AB39: =AB38 -> 0 | AC39: 0 | AD39: 0 | AE39: 0 | AF39: 0 | AG39: 0 | AH39: 0 | AI39: 0 | AJ39: 0 | AK39: 0 | AL39: 0
A41: 2 | B41: Bi-Annual Retailer Event Initiative | C41: Verified | D41: 96163.76553 | E41: 92853.36485 | F41: 92853.36485 | G41: 92853.36485 | H41: 92853.36485 | I41: 92853.36485 | J41: 92853.36485 | K41: 92853.36485 | L41: 92853.36485 | M41: 92853.36485 | O41: 7.149850452 | P41: 6.942032439 | Q41: 6.942032439 | R41: 6.942032439 | S41: 6.942032439 | T41: 6.942032439 | U41: 6.942032439 | V41: 6.942032439 | W41: 6.942032439 | X41: 6.942032439 | Y41: 1 | Z41: 0 | AA41: 0 | AM41: =SUM(Y41:AL41) -> 1
B42: Adjustment to 2015 savings | C42: True-up | D42: 0 | E42: 0 | F42: 0 | G42: 0 | H42: 0 | I42: 0 | J42: 0 | K42: 0 | L42: 0 | M42: 0 | O42: 0 | P42: 0 | Q42: 0 | R42: 0 | S42: 0 | T42: 0 | U42: 0 | V42: 0 | W42: 0 | X42: 0 | Y42: 1 | Z42: 0 | AA42: 0 | AB42: =AB41 -> 0 | AC42: 0 | AD42: 0 | AE42: 0 | AF42: 0 | AG42: 0 | AH42: 0 | AI42: 0 | AJ42: 0 | AK42: 0 | AL42: 0
A44: 3 | B44: Appliance Retirement Initiative | C44: Verified | D44: 11615.87188 | E44: 11615.87188 | F44: 11615.87188 | G44: 11511.46383 | H44: 6104.626473 | I44: 0 | J44: 0 | K44: 0 | L44: 0 | M44: 0 | O44: 1.894061985 | P44: 1.894061985 | Q44: 1.894061985 | R44: 1.777307688 | S44: 0.8971612564 | T44: 0 | U44: 0 | V44: 0 | W44: 0 | X44: 0 | Y44: 1 | Z44: 0 | AA44: 0 | AM44: =SUM(Y44:AL44) -> 1
B45: Adjustment to 2015 savings | C45: True-up | D45: 0 | E45: 0 | F45: 0 | G45: 0 | H45: 0 | I45: 0 | J45: 0 | K45: 0 | L45: 0 | M45: 0 | O45: 0 | P45: 0 | Q45: 0 | R45: 0 | S45: 0 | T45: 0 | U45: 0 | V45: 0 | W45: 0 | X45: 0 | Y45: 1 | Z45: 0 | AA45: 0 | AB45: =AB44 -> 0 | AC45: 0 | AD45: 0 | AE45: 0 | AF45: 0 | AG45: 0 | AH45: 0 | AI45: 0 | AJ45: 0 | AK45: 0 | AL45: 0
A47: 4 | B47: HVAC Incentives Initiative | C47: Verified | D47: 52366.54991 | E47: 52366.54991 | F47: 52366.54991 | G47: 52366.54991 | H47: 52366.54991 | I47: 52366.54991 | J47: 52366.54991 | K47: 52366.54991 | L47: 52366.54991 | M47: 52366.54991 | O47: 26.93831774 | P47: 26.93831774 | Q47: 26.93831774 | R47: 26.93831774 | S47: 26.93831774 | T47: 26.93831774 | U47: 26.93831774 | V47: 26.93831774 | W47: 26.93831774 | X47: 26.93831774 | Y47: 1 | Z47: 0 | AA47: 0 | AM47: =SUM(Y47:AL47) -> 1
B48: Adjustment to 2015 savings | C48: True-up | D48: 0 | E48: 0 | F48: 0 | G48: 0 | H48: 0 | I48: 0 | J48: 0 | K48: 0 | L48: 0 | M48: 0 | O48: 0 | P48: 0 | Q48: 0 | R48: 0 | S48: 0 | T48: 0 | U48: 0 | V48: 0 | W48: 0 | X48: 0 | Y48: 1 | Z48: 0 | AA48: 0 | AB48: =AB47 -> 0 | AC48: 0 | AD48: 0 | AE48: 0 | AF48: 0 | AG48: 0 | AH48: 0 | AI48: 0 | AJ48: 0 | AK48: 0 | AL48: 0
A50: 5 | B50: Residential New Construction and Major Renovation Initiative | C50: Verified | AM50: =SUM(Y50:AL50) -> 0
B51: Adjustment to 2015 savings | C51: True-up | Y51: 0 | Z51: 0 | AA51: 0 | AB51: =AB50 -> 0 | AC51: 0 | AD51: 0 | AE51: 0 | AF51: 0 | AG51: 0 | AH51: 0 | AI51: 0 | AJ51: 0 | AK51: 0 | AL51: 0
B53: Commercial & Institutional Program
A54: 6 | B54: Energy Audit Initiative | C54: Verified | N54: 12 | AM54: =SUM(Y54:AL54) -> 0
B55: Adjustment to 2015 savings | C55: True-up | N55: 12 | Y55: 0 | Z55: 0 | AA55: 0 | AB55: =AB54 -> 0 | AC55: 0 | AD55: 0 | AE55: 0 | AF55: 0 | AG55: 0 | AH55: 0 | AI55: 0 | AJ55: 0 | AK55: 0 | AL55: 0
A57: 7 | B57: Efficiency: Equipment Replacement Incentive Initiative | C57: Verified | D57: 801847.3259 | E57: 801847.3259 | F57: 799670.016 | G57: 799670.016 | H57: 799670.016 | I57: 799670.016 | J57: 783510.8875 | K57: 783510.8875 | L57: 781455.0947 | M57: 728631.7942 | N57: 12 | O57: 113.7699364 | P57: 113.7699364 | Q57: 113.0836554 | R57: 113.0836554 | S57: 113.0836554 | T57: 113.0836554 | U57: 111.2609444 | V57: 111.2609444 | W57: 110.6103817 | X57: 104.6543606 | Y57: 0 | Z57: 0.4815412583 | AA57: 0.5184587417 | AM57: =SUM(Y57:AL57) -> 1
B58: Adjustment to 2015 savings | C58: True-up | D58: -108625 | E58: -108625 | F58: -106447 | G58: -81187 | H58: -81187 | I58: -81187 | J58: -65028 | K58: -65027.92227 | L58: -65027.92227 | M58: -69894.35975 | N58: 12 | O58: -27.91696614 | P58: -27.91696614 | Q58: -20 | R58: -20 | S58: -20 | T58: -20 | U58: =T58/T57*U57 -> -19.67763494 | V58: =U58/U57*V57 -> -19.67763494 | W58: -19.56257628 | X58: -18.50919309 | Y58: 0 | Z58: 0.4815412583 | AA58: 0.5184587417 | AB58: =AB57 -> 0 | AC58: 0 | AD58: 0 | AE58: 0 | AF58: 0 | AG58: 0 | AH58: 0 | AI58: 0 | AJ58: 0 | AK58: 0 | AL58: 0
A60: 8 | B60: Direct Install Lighting and Water Heating Initiative | C60: Verified | D60: 200344.689 | E60: 173753.3517 | F60: 145101.0069 | G60: 145101.0069 | H60: 145101.0069 | I60: 145101.0069 | J60: 145101.0069 | K60: 145101.0069 | L60: 145101.0069 | M60: 145101.0069 | N60: 12 | O60: 45.67943895 | P60: 39.85649308 | Q60: 32.92200142 | R60: 32.92200142 | S60: 32.92200142 | T60: 32.92200142 | U60: 32.92200142 | V60: 32.92200142 | W60: 32.92200142 | X60: 32.92200142 | Y60: 0 | Z60: 1 | AA60: 0 | AM60: =SUM(Y60:AL60) -> 1
B61: Adjustment to 2015 savings | C61: True-up | D61: -46374.68895 | E61: -19784.35174 | F61: 8868.993055 | G61: 15272.99306 | H61: 15272.99306 | I61: 15272.99306 | J61: 15272.99306 | K61: 15272.99306 | L61: 15272.99306 | M61: 15272.99306 | N61: 12 | O61: -11 | P61: -5 | Q61: 2 | R61: 4 | S61: 4 | T61: 4 | U61: 4 | V61: 4 | W61: 4 | X61: 4 | Y61: 0 | Z61: 0 | AA61: 0 | AB61: =AB60 -> 0 | AC61: 0 | AD61: 0 | AE61: 0 | AF61: 0 | AG61: 0 | AH61: 0 | AI61: 0 | AJ61: 0 | AK61: 0 | AL61: 0
A63: 9 | B63: New Construction and Major Renovation Initiative | C63: Verified | N63: 12 | AM63: =SUM(Y63:AL63) -> 0
B64: Adjustment to 2015 savings | C64: True-up | N64: 12 | Y64: 0 | Z64: 0 | AA64: 0 | AB64: =AB63 -> 0 | AC64: 0 | AD64: 0 | AE64: 0 | AF64: 0 | AG64: 0 | AH64: 0 | AI64: 0 | AJ64: 0 | AK64: 0 | AL64: 0
A66: 10 | B66: Existing Building Commissioning Incentive Initiative | C66: Verified | N66: 3 | AM66: =SUM(Y66:AL66) -> 0
B67: Adjustment to 2015 savings | C67: True-up | N67: 3 | Y67: 0 | Z67: 0 | AA67: 0 | AB67: =AB66 -> 0 | AC67: 0 | AD67: 0 | AE67: 0 | AF67: 0 | AG67: 0 | AH67: 0 | AI67: 0 | AJ67: 0 | AK67: 0 | AL67: 0
B69: Industrial Program
A70: 11 | B70: Process and Systems Upgrades Initiatives - Project Incentive Initiative | C70: Verified | N70: 12 | AM70: =SUM(Y70:AL70) -> 0
B71: Adjustment to 2015 savings | C71: True-up | N71: 12 | Y71: 0 | Z71: 0 | AA71: 0 | AB71: =AB70 -> 0 | AC71: 0 | AD71: 0 | AE71: 0 | AF71: 0 | AG71: 0 | AH71: 0 | AI71: 0 | AJ71: 0 | AK71: 0 | AL71: 0
A73: 12 | B73: Process and Systems Upgrades Initiatives - Monitoring and Targeting Initiative | C73: Verified | N73: 12 | AM73: =SUM(Y73:AL73) -> 0
B74: Adjustment to 2015 savings | C74: True-up | N74: 12 | Y74: 0 | Z74: 0 | AA74: 0 | AB74: =AB73 -> 0 | AC74: 0 | AD74: 0 | AE74: 0 | AF74: 0 | AG74: 0 | AH74: 0 | AI74: 0 | AJ74: 0 | AK74: 0 | AL74: 0
A76: 13 | B76: Process and Systems Upgrades Initiatives - Energy Manager Initiative | C76: Verified | D76: 16371.36353 | E76: 16371.36353 | F76: 16371.36353 | G76: 16371.36353 | H76: 16371.36353 | I76: 16371.36353 | J76: 16371.36353 | K76: 16371.36353 | L76: 16371.36353 | M76: 16371.36353 | N76: 12 | O76: 5.1296895 | P76: 5.1296895 | Q76: 5.1296895 | R76: 5.1296895 | S76: 5.1296895 | T76: 5.1296895 | U76: 5.1296895 | V76: 5.1296895 | W76: 5.1296895 | X76: 5.1296895 | Y76: 0 | Z76: 0 | AA76: 1 | AM76: =SUM(Y76:AL76) -> 1
B77: Adjustment to 2015 savings | C77: True-up | D77: 0 | E77: 0 | F77: 0 | G77: 0 | H77: 0 | I77: 0 | J77: 0 | K77: 0 | L77: 0 | M77: 0 | N77: 12 | O77: 0 | P77: 0 | Q77: 0 | R77: 0 | S77: 0 | T77: 0 | U77: 0 | V77: 0 | W77: 0 | X77: 0 | Y77: 0 | Z77: 0 | AA77: 1 | AB77: =AB76 -> 0 | AC77: 0 | AD77: 0 | AE77: 0 | AF77: 0 | AG77: 0 | AH77: 0 | AI77: 0 | AJ77: 0 | AK77: 0 | AL77: 0
B79: Low Income Program
A80: 14 | B80: Low Income Initiative | C80: Verified | D80: 10324.69081 | E80: 7074.119881 | F80: 6461.81279 | G80: 5849.505199 | H80: 5849.505199 | I80: 5849.505199 | J80: 5213.616879 | K80: 5213.616879 | L80: 620.587326 | M80: 620.587326 | N80: 12 | O80: 0.679628097 | P80: 0.5107729651 | Q80: 0.4789658722 | R80: 0.4471587569 | S80: 0.4471587569 | T80: 0.4471587569 | U80: 0.4141267121 | V80: 0.4141267121 | W80: 0.1755358232 | X80: 0.1755358232 | Y80: 1 | Z80: 0 | AA80: 0 | AM80: =SUM(Y80:AL80) -> 1
B81: Adjustment to 2015 savings | C81: True-up | D81: 0 | E81: 0 | F81: 0 | G81: 0 | H81: 0 | I81: 0 | J81: 0 | K81: 0 | L81: 0 | M81: 0 | N81: 12 | O81: 0 | P81: 0 | Q81: 0 | R81: 0 | S81: 0 | T81: 0 | U81: 0 | V81: 0 | W81: 0 | X81: 0 | Y81: 1 | Z81: 0 | AA81: 0 | AB81: =AB80 -> 0 | AC81: 0 | AD81: =AD80 -> 0 | AE81: =AE80 -> 0 | AF81: 0 | AG81: 0 | AH81: 0 | AI81: 0 | AJ81: 0 | AK81: 0 | AL81: 0
B83: Other
A84: 15 | B84: Aboriginal Conservation Program | C84: Verified | N84: 0 | AM84: =SUM(Y84:AL84) -> 0
B85: Adjustment to 2015 savings | C85: True-up | N85: 0 | Y85: 0 | Z85: 0 | AA85: 0 | AB85: =AB84 -> 0 | AC85: 0 | AD85: =AD84 -> 0 | AE85: =AE84 -> 0 | AF85: 0 | AG85: 0 | AH85: 0 | AI85: 0 | AJ85: 0 | AK85: 0 | AL85: 0
A87: 16 | B87: Program Enabled Savings | C87: Verified | N87: 0 | AM87: =SUM(Y87:AL87) -> 0
B88: Adjustment to 2015 savings | C88: True-up | N88: 0 | Y88: 0 | Z88: 0 | AA88: 0 | AB88: =AB87 -> 0 | AC88: 0 | AD88: =AD87 -> 0 | AE88: =AE87 -> 0 | AF88: 0 | AG88: 0 | AH88: 0 | AI88: 0 | AJ88: 0 | AK88: 0 | AL88: 0
B90: Conservation Fund Pilots
A91: 17 | B91: Conservation Fund Pilot - EnerNOC | C91: Verified | N91: 0 | AM91: =SUM(Y91:AL91) -> 0
B92: Adjustment to 2015 savings | C92: True-up | N92: 0 | Y92: 0 | Z92: 0 | AA92: 0 | AB92: =AB91 -> 0 | AC92: 0 | AD92: 0 | AE92: 0 | AF92: 0 | AG92: 0 | AH92: 0 | AI92: 0 | AJ92: 0 | AK92: 0 | AL92: 0
A94: 18 | B94: Loblaws Pilot | C94: Verified | N94: 0 | AM94: =SUM(Y94:AL94) -> 0
B95: Adjustment to 2015 savings | C95: True-up | N95: 0 | Y95: 0 | Z95: 0 | AA95: 0 | AB95: =AB94 -> 0 | AC95: 0 | AD95: 0 | AE95: 0 | AF95: 0 | AG95: 0 | AH95: 0 | AI95: 0 | AJ95: 0 | AK95: 0 | AL95: 0
A97: 19 | B97: Conservation Fund Pilot - SEG | C97: Verified | N97: 0 | AM97: =SUM(Y97:AL97) -> 0
B98: Adjustment to 2015 savings | C98: True-up | N98: 0 | Y98: 0 | Z98: 0 | AA98: 0 | AB98: =AB97 -> 0 | AC98: 0 | AD98: 0 | AE98: 0 | AF98: 0 | AG98: 0 | AH98: 0 | AI98: 0 | AJ98: 0 | AK98: 0 | AL98: 0
A100: 20 | B100: Social Benchmarking Pliot | C100: Verified | N100: 0 | AM100: =SUM(Y100:AL100) -> 0
B101: Adjustment to 2015 savings | C101: True-up | N101: 0 | Y101: 0 | Z101: 0 | AA101: 0 | AB101: =AB100 -> 0 | AC101: 0 | AD101: 0 | AE101: 0 | AF101: 0 | AG101: 0 | AH101: 0 | AI101: 0 | AJ101: 0 | AK101: 0 | AL101: 0
B103: Conservation First Framework
B104: Residential Province-Wide Programs
A105: 21 | B105: Save on Energy Coupon Program | C105: Verified | D105: 272095.7722 | E105: 269742.4997 | F105: 269742.4997 | G105: 269742.4997 | H105: 269742.4997 | I105: 269742.4997 | J105: 269742.4997 | K105: 269587.0895 | L105: 269587.0895 | M105: 269587.0895 | O105: 17.46995117 | P105: 17.32221908 | Q105: 17.32221908 | R105: 17.32221908 | S105: 17.32221908 | T105: 17.32221908 | U105: 17.32221908 | V105: 17.3044782 | W105: 17.3044782 | X105: 17.3044782 | Y105: 1 | Z105: 0 | AA105: 0 | AM105: =SUM(Y105:AL105) -> 1
B106: Adjustment to 2015 savings | C106: True-up | D106: 26760.27134 | E106: 26378.21619 | F106: 26378.21619 | G106: 26378.21619 | H106: 26378.21619 | I106: 26378.21619 | J106: 26378.21619 | K106: 26363.35099 | L106: 26363.35099 | M106: 26363.35099 | O106: 1.719892579 | P106: 1.695908189 | Q106: 1.695908189 | R106: 1.695908189 | S106: 1.695908189 | T106: 1.695908189 | U106: 1.695908189 | V106: 1.694211248 | W106: 1.694211248 | X106: 1.694211248 | Y106: 1 | Z106: 0 | AA106: 0 | AB106: =AB105 -> 0 | AC106: 0 | AD106: 0 | AE106: 0 | AF106: 0 | AG106: 0 | AH106: 0 | AI106: 0 | AJ106: 0 | AK106: 0 | AL106: 0
A108: 22 | B108: Save on Energy Heating and Cooling Program | C108: Verified | D108: 71915.79536 | E108: 71915.79536 | F108: 71915.79536 | G108: 71915.79536 | H108: 71915.79536 | I108: 71915.79536 | J108: 71915.79536 | K108: 71915.79536 | L108: 71915.79536 | M108: 71915.79536 | O108: 36.79374992 | P108: 36.79374992 | Q108: 36.79374992 | R108: 36.79374992 | S108: 36.79374992 | T108: 36.79374992 | U108: 36.79374992 | V108: 36.79374992 | W108: 36.79374992 | X108: 36.79374992 | Y108: 1 | Z108: 0 | AA108: 0 | AM108: =SUM(Y108:AL108) -> 1
B109: Adjustment to 2015 savings | C109: True-up | D109: 6659 | E109: 6659 | F109: 6659 | G109: 6659 | H109: 6659 | I109: 6659 | J109: 6659 | K109: 6659 | L109: 6659 | M109: 6659 | O109: 3.4535 | P109: 3.4535 | Q109: 3.4535 | R109: 3.4535 | S109: 3.4535 | T109: 3.4535 | U109: 3.4535 | V109: 3.4535 | W109: 3.4535 | X109: 3.4535 | Y109: 1 | Z109: 0 | AA109: 0 | AB109: =AB108 -> 0 | AC109: 0 | AD109: 0 | AE109: 0 | AF109: 0 | AG109: 0 | AH109: 0 | AI109: 0 | AJ109: 0 | AK109: 0 | AL109: 0
A111: 23 | B111: Save on Energy New Construction Program | C111: Verified | AM111: =SUM(Y111:AL111) -> 0
B112: Adjustment to 2015 savings | C112: True-up | Y112: 0 | Z112: 0 | AA112: 0 | AB112: =AB111 -> 0 | AC112: 0 | AD112: 0 | AE112: 0 | AF112: 0 | AG112: 0 | AH112: 0 | AI112: 0 | AJ112: 0 | AK112: 0 | AL112: 0
A114: 24 | B114: Save on Energy Home Assistance Program | C114: Verified | AM114: =SUM(Y114:AL114) -> 0
B115: Adjustment to 2015 savings | C115: True-up | Y115: 0 | Z115: 0 | AA115: 0 | AB115: =AB114 -> 0 | AC115: 0 | AD115: 0 | AE115: 0 | AF115: 0 | AG115: 0 | AH115: 0 | AI115: 0 | AJ115: 0 | AK115: 0 | AL115: 0
B117: Non-Residential Province-Wide Programs
A118: 25 | B118: Save on Energy Audit Funding Program | C118: Verified | N118: 12 | AM118: =SUM(Y118:AL118) -> 0
B119: Adjustment to 2015 savings | C119: True-up | N119: 12 | Y119: 0 | Z119: 0 | AA119: 0 | AB119: =AB118 -> 0 | AC119: 0 | AD119: 0 | AE119: 0 | AF119: 0 | AG119: 0 | AH119: 0 | AI119: 0 | AJ119: 0 | AK119: 0 | AL119: 0
A121: 26 | B121: Save on Energy Retrofit Program | C121: Verified | D121: 157549.1432 | E121: 157549.1432 | F121: 157549.1432 | G121: 157549.1432 | H121: 157549.1432 | I121: 157549.1432 | J121: 155886.9036 | K121: 155886.9036 | L121: 155886.9036 | M121: 150468.8252 | N121: 12 | O121: 11.25349736 | P121: 11.25349736 | Q121: 11.25349736 | R121: 11.25349736 | S121: 11.25349736 | T121: 11.25349736 | U121: 11.09171121 | V121: 11.09171121 | W121: 11.09171121 | X121: 10.56436844 | Y121: 0 | Z121: 0.1249225852 | AA121: 0.8750774148 | AM121: =SUM(Y121:AL121) -> 1
B122: Adjustment to 2015 savings | C122: True-up | D122: 339035.1402 | E122: 339035.1402 | F122: 339035.1402 | G122: 339035.1402 | H122: 339035.1402 | I122: 339035.1402 | J122: 334126.6646 | K122: 334126.6646 | L122: 334126.6646 | M122: 318625.8627 | N122: 12 | O122: 53.61957076 | P122: 53.61957076 | Q122: 53.61957076 | R122: 53.61957076 | S122: 53.61957076 | T122: 53.61957076 | U122: 52.86318614 | V122: 52.86318614 | W122: 52.86318614 | X122: 50.47454877 | Y122: 0 | Z122: 0.1249225852 | AA122: 0.8750774148 | AB122: =AB121 -> 0 | AC122: 0 | AD122: 0 | AE122: 0 | AF122: 0 | AG122: 0 | AH122: 0 | AI122: 0 | AJ122: 0 | AK122: 0 | AL122: 0
A124: 27 | B124: Save on Energy Small Business Lighting Program | C124: Verified | N124: 12 | AM124: =SUM(Y124:AL124) -> 0
B125: Adjustment to 2015 savings | C125: True-up | N125: 12 | Y125: 0 | Z125: 0 | AA125: 0 | AB125: =AB124 -> 0 | AC125: 0 | AD125: 0 | AE125: 0 | AF125: 0 | AG125: 0 | AH125: 0 | AI125: 0 | AJ125: 0 | AK125: 0 | AL125: 0
A127: 28 | B127: Save on Energy High Performance New Construction Program | C127: Verified | N127: 12 | AM127: =SUM(Y127:AL127) -> 0
B128: Adjustment to 2015 savings | C128: True-up | N128: 12 | Y128: 0 | Z128: 0 | AA128: 0 | AB128: =AB127 -> 0 | AC128: 0 | AD128: 0 | AE128: 0 | AF128: 0 | AG128: 0 | AH128: 0 | AI128: 0 | AJ128: 0 | AK128: 0 | AL128: 0
A130: 29 | B130: Save on Energy Existing Building Commissioning Program | C130: Verified | N130: 3 | AM130: =SUM(Y130:AL130) -> 0
B131: Adjustment to 2015 savings | C131: True-up | N131: 3 | Y131: 0 | Z131: 0 | AA131: 0 | AB131: =AB130 -> 0 | AC131: 0 | AD131: 0 | AE131: 0 | AF131: 0 | AG131: 0 | AH131: 0 | AI131: 0 | AJ131: 0 | AK131: 0 | AL131: 0
A133: 30 | B133: Save on Energy Process & Systems Upgrades Program | C133: Verified | N133: 12 | AM133: =SUM(Y133:AL133) -> 0
B134: Adjustment to 2015 savings | C134: True-up | N134: 12 | Y134: 0 | Z134: 0 | AA134: 0 | AB134: =AB133 -> 0 | AC134: 0 | AD134: 0 | AE134: 0 | AF134: 0 | AG134: 0 | AH134: 0 | AI134: 0 | AJ134: 0 | AK134: 0 | AL134: 0
A136: 31 | B136: Save on Energy Monitoring & Targeting Program | C136: Verified | N136: 12 | AM136: =SUM(Y136:AL136) -> 0
B137: Adjustment to 2015 savings | C137: True-up | N137: 12 | Y137: 0 | Z137: 0 | AA137: 0 | AB137: =AB136 -> 0 | AC137: 0 | AD137: 0 | AE137: 0 | AF137: 0 | AG137: 0 | AH137: 0 | AI137: 0 | AJ137: 0 | AK137: 0 | AL137: 0
A139: 32 | B139: Save on Energy Energy Manager Program | C139: Verified | N139: 12 | AM139: =SUM(Y139:AL139) -> 0
B140: Adjustment to 2015 savings | C140: True-up | N140: 12 | Y140: 0 | Z140: 0 | AA140: 0 | AB140: =AB139 -> 0 | AC140: 0 | AD140: 0 | AE140: 0 | AF140: 0 | AG140: 0 | AH140: 0 | AI140: 0 | AJ140: 0 | AK140: 0 | AL140: 0
B142: Local & Regional Programs
A143: 33 | B143: Business Refrigeration Local Program | C143: Verified | N143: 0 | AM143: =SUM(Y143:AL143) -> 0
B144: Adjustment to 2015 savings | C144: True-up | N144: 0 | Y144: 0 | Z144: 0 | AA144: 0 | AB144: =AB143 -> 0 | AC144: 0 | AD144: 0 | AE144: 0 | AF144: 0 | AG144: 0 | AH144: 0 | AI144: 0 | AJ144: 0 | AK144: 0 | AL144: 0
A146: 34 | B146: First Nation Conservation Local Program | C146: Verified | N146: 0 | AM146: =SUM(Y146:AL146) -> 0
B147: Adjustment to 2015 savings | C147: True-up | N147: 0 | Y147: 0 | Z147: 0 | AA147: 0 | AB147: =AB146 -> 0 | AC147: 0 | AD147: 0 | AE147: 0 | AF147: 0 | AG147: 0 | AH147: 0 | AI147: 0 | AJ147: 0 | AK147: 0 | AL147: 0
A149: 35 | B149: Social Benchmarking Local Program | C149: Verified | N149: 0 | AM149: =SUM(Y149:AL149) -> 0
B150: Adjustment to 2015 savings | C150: True-up | N150: 0 | Y150: 0 | Z150: 0 | AA150: 0 | AB150: =AB149 -> 0 | AC150: 0 | AD150: 0 | AE150: 0 | AF150: 0 | AG150: 0 | AH150: 0 | AI150: 0 | AJ150: 0 | AK150: 0 | AL150: 0
B152: Pilot Programs
A153: 36 | B153: Enersource Hydro Mississauga Inc. - Performance-Based Conservation Pilot Program - Conservation Fund | C153: Verified | N153: 0 | AM153: =SUM(Y153:AL153) -> 0
B154: Adjustment to 2015 savings | C154: True-up | N154: 0 | Y154: 0 | Z154: 0 | AA154: 0 | AB154: =AB153 -> 0 | AC154: 0 | AD154: 0 | AE154: 0 | AF154: 0 | AG154: 0 | AH154: 0 | AI154: 0 | AJ154: 0 | AK154: 0 | AL154: 0
A156: 37 | B156: EnWin Utilities Ltd. - Building Optimization Pilot | C156: Verified | N156: 0 | AM156: =SUM(Y156:AL156) -> 0
B157: Adjustment to 2015 savings | C157: True-up | N157: 0 | Y157: 0 | Z157: 0 | AA157: 0 | AB157: =AB156 -> 0 | AC157: 0 | AD157: 0 | AE157: 0 | AF157: 0 | AG157: 0 | AH157: 0 | AI157: 0 | AJ157: 0 | AK157: 0 | AL157: 0
A159: 38 | B159: EnWin Utilities Ltd. - Re-Invest Pilot | C159: Verified | N159: 0 | AM159: =SUM(Y159:AL159) -> 0
B160: Adjustment to 2015 savings | C160: True-up | N160: 0 | Y160: 0 | Z160: 0 | AA160: 0 | AB160: =AB159 -> 0 | AC160: 0 | AD160: 0 | AE160: 0 | AF160: 0 | AG160: 0 | AH160: 0 | AI160: 0 | AJ160: 0 | AK160: 0 | AL160: 0
A162: 39 | B162: Horizon Utilities Corporation - ECM Furnace Motor Pilot | C162: Verified | N162: 0 | AM162: =SUM(Y162:AL162) -> 0
B163: Adjustment to 2015 savings | C163: True-up | N163: 0 | Y163: 0 | Z163: 0 | AA163: 0 | AB163: =AB162 -> 0 | AC163: 0 | AD163: 0 | AE163: 0 | AF163: 0 | AG163: 0 | AH163: 0 | AI163: 0 | AJ163: 0 | AK163: 0 | AL163: 0
A165: 40 | B165: Horizon Utilities Corporation - Social Benchmarking Pilot | C165: Verified | N165: 0 | AM165: =SUM(Y165:AL165) -> 0
B166: Adjustment to 2015 savings | C166: True-up | N166: 0 | Y166: 0 | Z166: 0 | AA166: 0 | AB166: =AB165 -> 0 | AC166: 0 | AD166: 0 | AE166: 0 | AF166: 0 | AG166: 0 | AH166: 0 | AI166: 0 | AJ166: 0 | AK166: 0 | AL166: 0
A168: 41 | B168: Hydro Ottawa Limited - Conservation Voltage Regulation (CVR) Leveraging AMI Data Pilot | C168: Verified | N168: 0 | AM168: =SUM(Y168:AL168) -> 0
B169: Adjustment to 2015 savings | C169: True-up | N169: 0 | Y169: 0 | Z169: 0 | AA169: 0 | AB169: =AB168 -> 0 | AC169: 0 | AD169: 0 | AE169: 0 | AF169: 0 | AG169: 0 | AH169: 0 | AI169: 0 | AJ169: 0 | AK169: 0 | AL169: 0
A171: 42 | B171: Hydro Ottawa Limited - Residential Demand Response Wi-Fi Thermostat Pilot | C171: Verified | AM171: =SUM(Y171:AL171) -> 0
B172: Adjustment to 2015 savings | C172: True-up | Y172: 0 | Z172: 0 | AA172: 0 | AB172: =AB171 -> 0 | AC172: 0 | AD172: 0 | AE172: 0 | AF172: 0 | AG172: 0 | AH172: 0 | AI172: 0 | AJ172: 0 | AK172: 0 | AL172: 0
A174: 43 | B174: Kitchener-Wilmot Hydro Inc. - Pilot - DCKV | C174: Verified | N174: 0 | AM174: =SUM(Y174:AL174) -> 0
B175: Adjustment to 2015 savings | C175: True-up | N175: 0 | Y175: 0 | Z175: 0 | AA175: 0 | AB175: =AB174 -> 0 | AC175: 0 | AD175: 0 | AE175: 0 | AF175: 0 | AG175: 0 | AH175: 0 | AI175: 0 | AJ175: 0 | AK175: 0 | AL175: 0
A177: 44 | B177: Niagara-on-the-Lake Hydro Inc. - Direct Install Energy Efficiency Measures for the Agricultural Sector | C177: Verified | N177: 0 | AM177: =SUM(Y177:AL177) -> 0
B178: Adjustment to 2015 savings | C178: True-up | N178: 0 | Y178: 0 | Z178: 0 | AA178: 0 | AB178: =AB177 -> 0 | AC178: 0 | AD178: 0 | AE178: 0 | AF178: 0 | AG178: 0 | AH178: 0 | AI178: 0 | AJ178: 0 | AK178: 0 | AL178: 0
A180: 45 | B180: Oakville Hydro Electricity Distribution Inc. - Direct Install - Hydronic | C180: Verified | N180: 0 | AM180: =SUM(Y180:AL180) -> 0
B181: Adjustment to 2015 savings | C181: True-up | N181: 0 | Y181: 0 | Z181: 0 | AA181: 0 | AB181: =AB180 -> 0 | AC181: 0 | AD181: 0 | AE181: 0 | AF181: 0 | AG181: 0 | AH181: 0 | AI181: 0 | AJ181: 0 | AK181: 0 | AL181: 0
A183: 46 | B183: Oakville Hydro Electricity Distribution Inc. - Direct Install - RTU Controls | C183: Verified | N183: 0 | AM183: =SUM(Y183:AL183) -> 0
B184: Adjustment to 2015 savings | C184: True-up | N184: 0 | Y184: 0 | Z184: 0 | AA184: 0 | AB184: =AB183 -> 0 | AC184: 0 | AD184: 0 | AE184: 0 | AF184: 0 | AG184: 0 | AH184: 0 | AI184: 0 | AJ184: 0 | AK184: 0 | AL184: 0
A186: 47 | B186: Toronto Hydro-Electric System Limited - Direct Install - Hydronic (Pilot Savings) | C186: Verified | N186: 0 | AM186: =SUM(Y186:AL186) -> 0
B187: Adjustment to 2015 savings | C187: True-up | N187: 0 | Y187: 0 | Z187: 0 | AA187: 0 | AB187: =AB186 -> 0 | AC187: 0 | AD187: 0 | AE187: 0 | AF187: 0 | AG187: 0 | AH187: 0 | AI187: 0 | AJ187: 0 | AK187: 0 | AL187: 0
A189: 48 | B189: Toronto Hydro-Electric System Limited - Direct Install - RTU Controls (Pilot Savings) | C189: Verified | N189: 0 | AM189: =SUM(Y189:AL189) -> 0
B190: Adjustment to 2015 savings | C190: True-up | N190: 0 | Y190: 0 | Z190: 0 | AA190: 0 | AB190: =AB189 -> 0 | AC190: 0 | AD190: 0 | AE190: 0 | AF190: 0 | AG190: 0 | AH190: 0 | AI190: 0 | AJ190: 0 | AK190: 0 | AL190: 0
A192: 49 | B192: Toronto Hydro-Electric System Limited - PFP - Large (Pilot Savings) | C192: Verified | N192: 0 | AM192: =SUM(Y192:AL192) -> 0
B193: Adjustment to 2015 savings | C193: True-up | N193: 0 | Y193: 0 | Z193: 0 | AA193: 0 | AB193: =AB192 -> 0 | AC193: 0 | AD193: 0 | AE193: 0 | AF193: 0 | AG193: 0 | AH193: 0 | AI193: 0 | AJ193: 0 | AK193: 0 | AL193: 0
B195: Actual CDM Savings in 2015 | D195: =SUM(D38:D193) -> 1948797.028 | O195: =SUM(O38:O193) -> 289.229664 | Y195: =IF(Y36="kWh",SUMPRODUCT(D38:D193,Y38:Y193)) -> 588649.0549 | Z195: =IF(Z36="kWh",SUMPRODUCT(D38:D193,Z38:Z193)) -> 596194.4325 | AA195: =IF(AA36="kw",SUMPRODUCT(N38:N193,O38:O193,AA38:AA193),SUMPRODUCT(D38:D193,AA38:AA193)) -> 810328.2294 | AB195: =IF(AB36="kw",SUMPRODUCT(N38:N193,O38:O193,AB38:AB193),SUMPRODUCT(D38:D193,AB38:AB193)) -> 0 | AC195: =IF(AC36="kw",SUMPRODUCT(N38:N193,O38:O193,AC38:AC193),SUMPRODUCT(D38:D193,AC38:AC193)) -> 0 | AD195: =IF(AD36="kw",SUMPRODUCT(N38:N193,O38:O193,AD38:AD193),SUMPRODUCT(D38:D193,AD38:AD193)) -> 0 | AE195: =IF(AE36="kw",SUMPRODUCT(N38:N193,O38:O193,AE38:AE193),SUMPRODUCT(D38:D193,AE38:AE193)) -> 0 | AF195: =IF(AF36="kw",SUMPRODUCT(N38:N193,O38:O193,AF38:AF193),SUMPRODUCT(D38:D193,AF38:AF193)) -> 0 | AG195: =IF(AG36="kw",SUMPRODUCT(N38:N193,O38:O193,AG38:AG193),SUMPRODUCT(D38:D193,AG38:AG193)) -> 0 | AH195: =IF(AH36="kw",SUMPRODUCT(N38:N193,O38:O193,AH38:AH193),SUMPRODUCT(D38:D193,AH38:AH193)) -> 0 | AI195: =IF(AI36="kw",SUMPRODUCT(N38:N193,O38:O193,AI38:AI193),SUMPRODUCT(D38:D193,AI38:AI193)) -> 0 | AJ195: =IF(AJ36="kw",SUMPRODUCT(N38:N193,O38:O193,AJ38:AJ193),SUMPRODUCT(D38:D193,AJ38:AJ193)) -> 0 | AK195: =IF(AK36="kw",SUMPRODUCT(N38:N193,O38:O193,AK38:AK193),SUMPRODUCT(D38:D193,AK38:AK193)) -> 0 | AL195: =IF(AL36="kw",SUMPRODUCT(N38:N193,O38:O193,AL38:AL193),SUMPRODUCT(D38:D193,AL38:AL193)) -> 0
B196: Forecast CDM Savings in 2015 | Y196: 1345003 | Z196: 543085 | AA196: 1346579 | AB196: 24666 | AC196: 4684 | AD196: 0 | AE196: 0 | AF196: 0 | AG196: 0 | AH196: 0 | AI196: 0 | AJ196: 0 | AK196: 0 | AL196: 0
B198: Distribution Rate in 2015 | Y198: 0.0198 | Z198: 0.0134 | AA198: 3.1553 | AB198: 14.7153 | AC198: 0.0116 | AD198: 0 | AE198: 0 | AF198: 0 | AG198: 0 | AH198: 0 | AI198: 0 | AJ198: 0 | AK198: 0 | AL198: 0
B199: Lost Revenue in 2015 from 2011 programs | Y199: 4620.508777 | Z199: 2458.540941 | AA199: 652795.4155 | AB199: 0 | AC199: 0 | AD199: 0 | AE199: 0 | AF199: 0 | AG199: 0 | AH199: 0 | AI199: 0 | AJ199: 0 | AK199: 0 | AL199: 0 | AM199: =SUM(Y199:AL199) -> 659874.4652
B200: Lost Revenue in 2015 from 2012 programs | Y200: 3602.747318 | Z200: 7410.503667 | AA200: 2713652.951 | AB200: 0 | AC200: 0 | AD200: 0 | AE200: 0 | AF200: 0 | AG200: 0 | AH200: 0 | AI200: 0 | AJ200: 0 | AK200: 0 | AL200: 0 | AM200: =SUM(Y200:AL200) -> 2724666.202
B201: Lost Revenue in 2015 from 2013 programs | Y201: 3516.084784 | Z201: 10709.1114 | AA201: 1971825.715 | AB201: 0 | AC201: 0 | AD201: 0 | AE201: 0 | AF201: 0 | AG201: 0 | AH201: 0 | AI201: 0 | AJ201: 0 | AK201: 0 | AL201: 0 | AM201: =SUM(Y201:AL201) -> 1986050.912
B202: Lost Revenue in 2015 from 2014 programs | Y202: 11457.0216 | Z202: 16227.05781 | AA202: 1659869.478 | AB202: 0 | AC202: 0 | AD202: 0 | AE202: 0 | AF202: 0 | AG202: 0 | AH202: 0 | AI202: 0 | AJ202: 0 | AK202: 0 | AL202: 0 | AM202: =SUM(Y202:AL202) -> 1687553.557
B203: Lost Revenue in 2015 from 2015 programs | Y203: =Y195*Y198 -> 11655.25129 | Z203: =Z195*Z198 -> 7989.005395 | AA203: =AA195*AA198 -> 2556828.662 | AB203: =AB195*AB198 -> 0 | AC203: 0 | AD203: 0 | AE203: 0 | AF203: 0 | AG203: 0 | AH203: 0 | AI203: 0 | AJ203: 0 | AK203: 0 | AL203: 0 | AM203: =SUM(Y203:AL203) -> 2576472.919
B204: Total Lost Revenues in 2015 | Y204: =SUM(Y199:Y203) -> 34851.61377 | Z204: =SUM(Z199:Z203) -> 44794.21922 | AA204: =SUM(AA199:AA203) -> 9554972.222 | AB204: 0 | AC204: 0 | AD204: 0 | AE204: 0 | AF204: =SUM(AF199:AF203) -> 0 | AG204: =SUM(AG199:AG203) -> 0 | AH204: =SUM(AH199:AH203) -> 0 | AI204: 0 | AJ204: 0 | AK204: 0 | AL204: 0 | AM204: =SUM(AM199:AM203) -> 9634618.055
B205: Forecast Lost Revenues in 2015 | Y205: =Y196*Y198 -> 26631.0594 | Z205: =Z196*Z198 -> 7277.339 | AA205: 4248860.719 | AB205: 362967.5898 | AC205: 54.3344 | AD205: 0 | AE205: 0 | AF205: =AF196*AF198 -> 0 | AG205: =AG196*AG198 -> 0 | AH205: 0 | AI205: 0 | AJ205: 0 | AK205: 0 | AL205: 0 | AM205: =SUM(Y205:AL205) -> 4645791.041
B206: LRAMVA in 2015 | AM206: =AM204-AM205 -> 4988827.014
B208: 2015 Savings Persisting in 2016 | Y208: =SUMPRODUCT(E38:E193,Y38:Y193) -> 578989.8183 | Z208: =SUMPRODUCT(E38:E193,Z38:Z193) -> 569603.0953 | AA208: =IF(AA36="kw",SUMPRODUCT(N38:N193,P38:P193,AA38:AA193),SUMPRODUCT(E38:E193,AA38:AA193)) -> 810328.2294 | AB208: =IF(AB36="kw",SUMPRODUCT(N38:N193,P38:P193,AB38:AB193),SUMPRODUCT(E38:E193,AB38:AB193)) -> 0 | AC208: =IF(AC36="kw",SUMPRODUCT(N38:N193,P38:P193,AC38:AC193),SUMPRODUCT(E38:E193,AC38:AC193)) -> 0 | AD208: =IF(AD36="kw",SUMPRODUCT(N38:N193,P38:P193,AD38:AD193),SUMPRODUCT(E38:E193,AD38:AD193)) -> 0 | AE208: =IF(AE36="kw",SUMPRODUCT(N38:N193,P38:P193,AE38:AE193),SUMPRODUCT(E38:E193,AE38:AE193)) -> 0 | AF208: =IF(AF36="kw",SUMPRODUCT(N38:N193,P38:P193,AF38:AF193),SUMPRODUCT(E38:E193,AF38:AF193)) -> 0 | AG208: =IF(AG36="kw",SUMPRODUCT(N38:N193,P38:P193,AG38:AG193),SUMPRODUCT(E38:E193,AG38:AG193)) -> 0 | AH208: =IF(AH36="kw",SUMPRODUCT(N38:N193,P38:P193,AH38:AH193),SUMPRODUCT(E38:E193,AH38:AH193)) -> 0 | AI208: =IF(AI36="kw",SUMPRODUCT(N38:N193,P38:P193,AI38:AI193),SUMPRODUCT(E38:E193,AI38:AI193)) -> 0 | AJ208: =IF(AJ36="kw",SUMPRODUCT(N38:N193,P38:P193,AJ38:AJ193),SUMPRODUCT(E38:E193,AJ38:AJ193)) -> 0 | AK208: =IF(AK36="kw",SUMPRODUCT(N38:N193,P38:P193,AK38:AK193),SUMPRODUCT(E38:E193,AK38:AK193)) -> 0 | AL208: =IF(AL36="kw",SUMPRODUCT(N38:N193,P38:P193,AL38:AL193),SUMPRODUCT(E38:E193,AL38:AL193)) -> 0
B209: 2015 Savings Persisting in 2017 | Y209: =SUMPRODUCT(F38:F193,Y38:Y193) -> 578377.5112 | Z209: =SUMPRODUCT(F38:F193,Z38:Z193) -> 540951.0828 | AA209: =IF(AA36="kw",SUMPRODUCT(N38:N193,Q38:Q193,AA38:AA193),SUMPRODUCT(F38:F193,AA38:AA193)) -> 810328.5871 | AB209: =IF(AB36="kw",SUMPRODUCT(N38:N193,Q38:Q193,AB38:AB193),SUMPRODUCT(F38:F193,AB38:AB193)) -> 0 | AC209: =IF(AC36="kw",SUMPRODUCT(N38:N193,Q38:Q193,AC38:AC193),SUMPRODUCT(F38:F193,AC38:AC193)) -> 0 | AD209: =IF(AD36="kw",SUMPRODUCT(N38:N193,Q38:Q193,AD38:AD193),SUMPRODUCT(F38:F193,AD38:AD193)) -> 0 | AE209: =IF(AE36="kw",SUMPRODUCT(N38:N193,Q38:Q193,AE38:AE193),SUMPRODUCT(F38:F193,AE38:AE193)) -> 0 | AF209: =IF(AF36="kw",SUMPRODUCT(N38:N193,Q38:Q193,AF38:AF193),SUMPRODUCT(F38:F193,AF38:AF193)) -> 0 | AG209: =IF(AG36="kw",SUMPRODUCT(N38:N193,Q38:Q193,AG38:AG193),SUMPRODUCT(F38:F193,AG38:AG193)) -> 0 | AH209: =IF(AH36="kw",SUMPRODUCT(N38:N193,Q38:Q193,AH38:AH193),SUMPRODUCT(F38:F193,AH38:AH193)) -> 0 | AI209: =IF(AI36="kw",SUMPRODUCT(N38:N193,Q38:Q193,AI38:AI193),SUMPRODUCT(F38:F193,AI38:AI193)) -> 0 | AJ209: =IF(AJ36="kw",SUMPRODUCT(N38:N193,Q38:Q193,AJ38:AJ193),SUMPRODUCT(F38:F193,AJ38:AJ193)) -> 0 | AK209: =IF(AK36="kw",SUMPRODUCT(N38:N193,Q38:Q193,AK38:AK193),SUMPRODUCT(F38:F193,AK38:AK193)) -> 0 | AL209: =IF(AL36="kw",SUMPRODUCT(N38:N193,Q38:Q193,AL38:AL193),SUMPRODUCT(F38:F193,AL38:AL193)) -> 0
B210: 2015 Savings Persisting in 2018 | Y210: =SUMPRODUCT(G38:G193,Y38:Y193) -> 577660.7956 | Z210: =SUMPRODUCT(G38:G193,Z38:Z193) -> 553114.8149 | AA210: =IF(AA36="kw",SUMPRODUCT(N38:N193,R38:R193,AA38:AA193),SUMPRODUCT(G38:G193,AA38:AA193)) -> 823424.8549 | AB210: =IF(AB36="kw",SUMPRODUCT(N38:N193,R38:R193,AB38:AB193),SUMPRODUCT(G38:G193,AB38:AB193)) -> 0 | AC210: =IF(AC36="kw",SUMPRODUCT(N38:N193,R38:R193,AC38:AC193),SUMPRODUCT(G38:G193,AC38:AC193)) -> 0 | AD210: =IF(AD36="kw",SUMPRODUCT(N38:N193,R38:R193,AD38:AD193),SUMPRODUCT(G38:G193,AD38:AD193)) -> 0 | AE210: =IF(AE36="kw",SUMPRODUCT(N38:N193,R38:R193,AE38:AE193),SUMPRODUCT(G38:G193,AE38:AE193)) -> 0 | AF210: =IF(AF36="kw",SUMPRODUCT(N38:N193,R38:R193,AF38:AF193),SUMPRODUCT(G38:G193,AF38:AF193)) -> 0 | AG210: =IF(AG36="kw",SUMPRODUCT(N38:N193,R38:R193,AG38:AG193),SUMPRODUCT(G38:G193,AG38:AG193)) -> 0 | AH210: =IF(AH36="kw",SUMPRODUCT(N38:N193,R38:R193,AH38:AH193),SUMPRODUCT(G38:G193,AH38:AH193)) -> 0 | AI210: =IF(AI36="kw",SUMPRODUCT(N38:N193,R38:R193,AI38:AI193),SUMPRODUCT(G38:G193,AI38:AI193)) -> 0 | AJ210: =IF(AJ36="kw",SUMPRODUCT(N38:N193,R38:R193,AJ38:AJ193),SUMPRODUCT(G38:G193,AJ38:AJ193)) -> 0 | AK210: =IF(AK36="kw",SUMPRODUCT(N38:N193,R38:R193,AK38:AK193),SUMPRODUCT(G38:G193,AK38:AK193)) -> 0 | AL210: =IF(AL36="kw",SUMPRODUCT(N38:N193,R38:R193,AL38:AL193),SUMPRODUCT(G38:G193,AL38:AL193)) -> 0
B211: 2015 Savings Persisting in 2019 | Y211: =SUMPRODUCT(H38:H193,Y38:Y193) -> 572253.9582 | Z211: =SUMPRODUCT(H38:H193,Z38:Z193) -> 553114.8149 | AA211: =IF(AA36="kw",SUMPRODUCT(N38:N193,S38:S193,AA38:AA193),SUMPRODUCT(H38:H193,AA38:AA193)) -> 823424.8549 | AB211: =IF(AB36="kw",SUMPRODUCT(N38:N193,S38:S193,AB38:AB193),SUMPRODUCT(H38:H193,AB38:AB193)) -> 0 | AC211: =IF(AC36="kw",SUMPRODUCT(N38:N193,S38:S193,AC38:AC193),SUMPRODUCT(H38:H193,AC38:AC193)) -> 0 | AD211: =IF(AD36="kw",SUMPRODUCT(N38:N193,S38:S193,AD38:AD193),SUMPRODUCT(H38:H193,AD38:AD193)) -> 0 | AE211: =IF(AE36="kw",SUMPRODUCT(N38:N193,S38:S193,AE38:AE193),SUMPRODUCT(H38:H193,AE38:AE193)) -> 0 | AF211: =IF(AF36="kw",SUMPRODUCT(N38:N193,S38:S193,AF38:AF193),SUMPRODUCT(H38:H193,AF38:AF193)) -> 0 | AG211: =IF(AG36="kw",SUMPRODUCT(N38:N193,S38:S193,AG38:AG193),SUMPRODUCT(H38:H193,AG38:AG193)) -> 0 | AH211: =IF(AH36="kw",SUMPRODUCT(N38:N193,S38:S193,AH38:AH193),SUMPRODUCT(H38:H193,AH38:AH193)) -> 0 | AI211: =IF(AI36="kw",SUMPRODUCT(N38:N193,S38:S193,AI38:AI193),SUMPRODUCT(H38:H193,AI38:AI193)) -> 0 | AJ211: =IF(AJ36="kw",SUMPRODUCT(N38:N193,S38:S193,AJ38:AJ193),SUMPRODUCT(H38:H193,AJ38:AJ193)) -> 0 | AK211: =IF(AK36="kw",SUMPRODUCT(N38:N193,S38:S193,AK38:AK193),SUMPRODUCT(H38:H193,AK38:AK193)) -> 0 | AL211: =IF(AL36="kw",SUMPRODUCT(N38:N193,S38:S193,AL38:AL193),SUMPRODUCT(H38:H193,AL38:AL193)) -> 0
B212: 2015 Savings Persisting in 2020 | Y212: =SUMPRODUCT(I38:I193,Y38:Y193) -> 566149.3318 | Z212: =SUMPRODUCT(I38:I193,Z38:Z193) -> 553114.8149 | AA212: =IF(AA36="kw",SUMPRODUCT(N38:N193,T38:T193,AA38:AA193),SUMPRODUCT(I38:I193,AA38:AA193)) -> 823424.8549 | AB212: =IF(AB36="kw",SUMPRODUCT(N38:N193,T38:T193,AB38:AB193),SUMPRODUCT(I38:I193,AB38:AB193)) -> 0 | AC212: =IF(AC36="kw",SUMPRODUCT(N38:N193,T38:T193,AC38:AC193),SUMPRODUCT(I38:I193,AC38:AC193)) -> 0 | AD212: =IF(AD36="kw",SUMPRODUCT(N38:N193,T38:T193,AD38:AD193),SUMPRODUCT(I38:I193,AD38:AD193)) -> 0 | AE212: =IF(AE36="kw",SUMPRODUCT(N38:N193,T38:T193,AE38:AE193),SUMPRODUCT(I38:I193,AE38:AE193)) -> 0 | AF212: =IF(AF36="kw",SUMPRODUCT(N38:N193,T38:T193,AF38:AF193),SUMPRODUCT(I38:I193,AF38:AF193)) -> 0 | AG212: =IF(AG36="kw",SUMPRODUCT(N38:N193,T38:T193,AG38:AG193),SUMPRODUCT(I38:I193,AG38:AG193)) -> 0 | AH212: =IF(AH36="kw",SUMPRODUCT(N38:N193,T38:T193,AH38:AH193),SUMPRODUCT(I38:I193,AH38:AH193)) -> 0 | AI212: =IF(AI36="kw",SUMPRODUCT(N38:N193,T38:T193,AI38:AI193),SUMPRODUCT(I38:I193,AI38:AI193)) -> 0 | AJ212: =IF(AJ36="kw",SUMPRODUCT(N38:N193,T38:T193,AJ38:AJ193),SUMPRODUCT(I38:I193,AJ38:AJ193)) -> 0 | AK212: =IF(AK36="kw",SUMPRODUCT(N38:N193,T38:T193,AK38:AK193),SUMPRODUCT(I38:I193,AK38:AK193)) -> 0 | AL212: =IF(AL36="kw",SUMPRODUCT(N38:N193,T38:T193,AL38:AL193),SUMPRODUCT(I38:I193,AL38:AL193)) -> 0
B213: Note: LDC to make note of key assumptions included above
B216: Table 5-b. 2016 Lost Revenues Work Form | D216: Return to top
B217: Program | C217: Results Status | D217: Net Energy Savings (kWh) | E217: Net Energy Savings Persistence (kWh) | N217: Monthly Multiplier | O217: Net Demand Savings (kW) | P217: Net Peak Demand Savings Persistence (kW) | Y217: Rate Allocations for LRAMVA
D218: 2016 | E218: 2017 | F218: 2018 | G218: 2019 | H218: 2020 | I218: 2021 | J218: 2022 | K218: 2023 | L218: 2024 | M218: 2025 | O218: 2016 | P218: 2017 | Q218: 2018 | R218: 2019 | S218: 2020 | T218: 2021 | U218: 2022 | V218: 2023 | W218: 2024 | X218: 2025 | Y218: Residential | Z218: GS<50 kW | AA218: GS>50 kW | AB218: Streetlights | AC218: Unmetered Scattered Load | AM218: Total
B219: Legacy Framework | Y219: kWh | Z219: kWh | AA219: kWh | AB219: kWh | AC219: KWh | AD219: 0 | AE219: 0 | AF219: 0 | AG219: 0 | AH219: 0 | AI219: 0 | AJ219: 0 | AK219: 0 | AL219: 0
B220: Residential Program
A221: 1 | B221: Coupon Initiative | C221: Verified | AM221: =SUM(Y221:AL221) -> 0
B222: Adjustment to 2016 savings | C222: True-up | Y222: =Y221 -> 0 | Z222: =Z221 -> 0 | AA222: 0 | AB222: 0 | AC222: 0 | AD222: 0 | AE222: 0 | AF222: 0 | AG222: 0 | AH222: 0 | AI222: 0 | AJ222: 0 | AK222: 0 | AL222: 0
A224: 2 | B224: Bi-Annual Retailer Event Initiative | C224: Verified | AM224: =SUM(Y224:AL224) -> 0
B225: Adjustment to 2016 savings | C225: True-up | Y225: =Y224 -> 0 | Z225: =Z224 -> 0 | AA225: 0 | AB225: 0 | AC225: 0 | AD225: 0 | AE225: 0 | AF225: 0 | AG225: 0 | AH225: 0 | AI225: 0 | AJ225: 0 | AK225: 0 | AL225: 0
A227: 3 | B227: Appliance Retirement Initiative | C227: Verified | AM227: =SUM(Y227:AL227) -> 0
B228: Adjustment to 2016 savings | C228: True-up | Y228: =Y227 -> 0 | Z228: =Z227 -> 0 | AA228: 0 | AB228: 0 | AC228: 0 | AD228: 0 | AE228: 0 | AF228: 0 | AG228: 0 | AH228: 0 | AI228: 0 | AJ228: 0 | AK228: 0 | AL228: 0
A230: 4 | B230: HVAC Incentives Initiative | C230: Verified | AM230: =SUM(Y230:AL230) -> 0
B231: Adjustment to 2016 savings | C231: True-up | Y231: =Y230 -> 0 | Z231: =Z230 -> 0 | AA231: 0 | AB231: 0 | AC231: 0 | AD231: 0 | AE231: 0 | AF231: 0 | AG231: 0 | AH231: 0 | AI231: 0 | AJ231: 0 | AK231: 0 | AL231: 0
A233: 5 | B233: Residential New Construction and Major Renovation Initiative | C233: Verified | AM233: =SUM(Y233:AL233) -> 0
B234: Adjustment to 2016 savings | C234: True-up | Y234: =Y233 -> 0 | Z234: =Z233 -> 0 | AA234: 0 | AB234: 0 | AC234: 0 | AD234: 0 | AE234: 0 | AF234: 0 | AG234: 0 | AH234: 0 | AI234: 0 | AJ234: 0 | AK234: 0 | AL234: 0
B236: Commercial & Institutional Program
A237: 6 | B237: Energy Audit Initiative | C237: Verified | N237: 12 | AM237: =SUM(Y237:AL237) -> 0
B238: Adjustment to 2016 savings | C238: True-up | N238: =N237 -> 12 | Y238: =Y237 -> 0 | Z238: =Z237 -> 0 | AA238: 0 | AB238: 0 | AC238: 0 | AD238: 0 | AE238: 0 | AF238: 0 | AG238: 0 | AH238: 0 | AI238: 0 | AJ238: 0 | AK238: 0 | AL238: 0
A240: 7 | B240: Efficiency: Equipment Replacement Incentive Initiative | C240: Verified | N240: 12 | AM240: =SUM(Y240:AL240) -> 0
B241: Adjustment to 2016 savings | C241: True-up | N241: =N240 -> 12 | Y241: =Y240 -> 0 | Z241: =Z240 -> 0 | AA241: 0 | AB241: 0 | AC241: 0 | AD241: 0 | AE241: 0 | AF241: 0 | AG241: 0 | AH241: 0 | AI241: 0 | AJ241: 0 | AK241: 0 | AL241: 0
A243: 8 | B243: Direct Install Lighting and Water Heating Initiative | C243: Verified | N243: 12 | AM243: =SUM(Y243:AL243) -> 0
B244: Adjustment to 2016 savings | C244: True-up | N244: =N243 -> 12 | Y244: =Y243 -> 0 | Z244: =Z243 -> 0 | AA244: 0 | AB244: 0 | AC244: 0 | AD244: 0 | AE244: 0 | AF244: 0 | AG244: 0 | AH244: 0 | AI244: 0 | AJ244: 0 | AK244: 0 | AL244: 0
A246: 9 | B246: New Construction and Major Renovation Initiative | C246: Verified | N246: 12 | AM246: =SUM(Y246:AL246) -> 0
B247: Adjustment to 2016 savings | C247: True-up | N247: =N246 -> 12 | Y247: =Y246 -> 0 | Z247: =Z246 -> 0 | AA247: 0 | AB247: 0 | AC247: 0 | AD247: 0 | AE247: 0 | AF247: 0 | AG247: 0 | AH247: 0 | AI247: 0 | AJ247: 0 | AK247: 0 | AL247: 0
A249: 10 | B249: Existing Building Commissioning Incentive Initiative | C249: Verified | N249: 3 | AM249: =SUM(Y249:AL249) -> 0
B250: Adjustment to 2016 savings | C250: True-up | N250: =N249 -> 3 | Y250: =Y249 -> 0 | Z250: =Z249 -> 0 | AA250: 0 | AB250: 0 | AC250: 0 | AD250: 0 | AE250: 0 | AF250: 0 | AG250: 0 | AH250: 0 | AI250: 0 | AJ250: 0 | AK250: 0 | AL250: 0
B252: Industrial Program
A253: 11 | B253: Process and Systems Upgrades Initiatives - Project Incentive Initiative | C253: Verified | N253: 12 | AM253: =SUM(Y253:AL253) -> 0
B254: Adjustment to 2016 savings | C254: True-up | N254: =N253 -> 12 | Y254: =Y253 -> 0 | Z254: =Z253 -> 0 | AA254: 0 | AB254: 0 | AC254: 0 | AD254: 0 | AE254: 0 | AF254: 0 | AG254: 0 | AH254: 0 | AI254: 0 | AJ254: 0 | AK254: 0 | AL254: 0
A256: 12 | B256: Process and Systems Upgrades Initiatives - Monitoring and Targeting Initiative | C256: Verified | N256: 12 | AM256: =SUM(Y256:AL256) -> 0
B257: Adjustment to 2016 savings | C257: True-up | N257: =N256 -> 12 | Y257: =Y256 -> 0 | Z257: =Z256 -> 0 | AA257: 0 | AB257: 0 | AC257: 0 | AD257: 0 | AE257: 0 | AF257: 0 | AG257: 0 | AH257: 0 | AI257: 0 | AJ257: 0 | AK257: 0 | AL257: 0
A259: 13 | B259: Process and Systems Upgrades Initiatives - Energy Manager Initiative | C259: Verified | N259: 12 | AM259: =SUM(Y259:AL259) -> 0
B260: Adjustment to 2016 savings | C260: True-up | N260: =N259 -> 12 | Y260: =Y259 -> 0 | Z260: =Z259 -> 0 | AA260: 0 | AB260: 0 | AC260: 0 | AD260: 0 | AE260: 0 | AF260: 0 | AG260: 0 | AH260: 0 | AI260: 0 | AJ260: 0 | AK260: 0 | AL260: 0
B262: Low Income Program
A263: 14 | B263: Low Income Initiative | C263: Verified | N263: 12 | AM263: =SUM(Y263:AL263) -> 0
B264: Adjustment to 2016 savings | C264: True-up | N264: =N263 -> 12 | Y264: =Y263 -> 0 | Z264: =Z263 -> 0 | AA264: 0 | AB264: 0 | AC264: 0 | AD264: 0 | AE264: 0 | AF264: 0 | AG264: 0 | AH264: 0 | AI264: 0 | AJ264: 0 | AK264: 0 | AL264: 0
B266: Other
A267: 15 | B267: Aboriginal Conservation Program | C267: Verified | N267: 0 | AM267: =SUM(Y267:AL267) -> 0
B268: Adjustment to 2016 savings | C268: True-up | N268: =N267 -> 0 | Y268: =Y267 -> 0 | Z268: =Z267 -> 0 | AA268: 0 | AB268: 0 | AC268: 0 | AD268: 0 | AE268: 0 | AF268: 0 | AG268: 0 | AH268: 0 | AI268: 0 | AJ268: 0 | AK268: 0 | AL268: 0
A270: 16 | B270: Program Enabled Savings | C270: Verified | N270: 0 | AM270: =SUM(Y270:AL270) -> 0
B271: Adjustment to 2016 savings | C271: True-up | N271: =N270 -> 0 | Y271: =Y270 -> 0 | Z271: =Z270 -> 0 | AA271: 0 | AB271: 0 | AC271: 0 | AD271: 0 | AE271: 0 | AF271: 0 | AG271: 0 | AH271: 0 | AI271: 0 | AJ271: 0 | AK271: 0 | AL271: 0
B273: Conservation Fund Pilots
A274: 17 | B274: Conservation Fund Pilot - EnerNOC | C274: Verified | N274: 0 | AM274: =SUM(Y274:AL274) -> 0
B275: Adjustment to 2016 savings | C275: True-up | N275: =N274 -> 0 | Y275: =Y274 -> 0 | Z275: =Z274 -> 0 | AA275: 0 | AB275: 0 | AC275: 0 | AD275: 0 | AE275: 0 | AF275: 0 | AG275: 0 | AH275: 0 | AI275: 0 | AJ275: 0 | AK275: 0 | AL275: 0
A277: 18 | B277: Loblaws Pilot | C277: Verified | D277: 535 | E277: 535 | F277: 535 | G277: 535 | H277: 535 | I277: 535 | J277: 535 | K277: 535 | L277: 535 | M277: 535 | N277: 0 | O277: 0 | P277: 0 | Q277: 0 | R277: 0 | S277: 0 | T277: 0 | U277: 0 | V277: 0 | W277: 0 | X277: 0 | AM277: =SUM(Y277:AL277) -> 0
B278: Adjustment to 2016 savings | C278: True-up | D278: 0 | E278: 0 | F278: 0 | G278: 0 | H278: 0 | I278: 0 | J278: 0 | K278: 0 | L278: 0 | M278: 0 | N278: =N277 -> 0 | O278: 0 | P278: 0 | Q278: 0 | R278: 0 | S278: 0 | T278: 0 | U278: 0 | V278: 0 | W278: 0 | X278: 0 | Y278: =Y277 -> 0 | Z278: =Z277 -> 0 | AA278: 0 | AB278: 0 | AC278: 0 | AD278: 0 | AE278: 0 | AF278: 0 | AG278: 0 | AH278: 0 | AI278: 0 | AJ278: 0 | AK278: 0 | AL278: 0
A280: 19 | B280: Conservation Fund Pilot - SEG | C280: Verified | N280: 0 | AM280: =SUM(Y280:AL280) -> 0
B281: Adjustment to 2016 savings | C281: True-up | N281: =N280 -> 0 | Y281: =Y280 -> 0 | Z281: =Z280 -> 0 | AA281: 0 | AB281: 0 | AC281: 0 | AD281: 0 | AE281: 0 | AF281: 0 | AG281: 0 | AH281: 0 | AI281: 0 | AJ281: 0 | AK281: 0 | AL281: 0
A283: 20 | B283: Social Benchmarking Pliot | C283: Verified | N283: 0 | AM283: =SUM(Y283:AL283) -> 0
B284: Adjustment to 2016 savings | C284: True-up | N284: =N283 -> 0 | Y284: =Y283 -> 0 | Z284: =Z283 -> 0 | AA284: 0 | AB284: 0 | AC284: 0 | AD284: 0 | AE284: 0 | AF284: 0 | AG284: 0 | AH284: 0 | AI284: 0 | AJ284: 0 | AK284: 0 | AL284: 0
B286: Conservation First Framework | N286: 0
B287: Residential Province-Wide Programs | N287: =N286 -> 0 | Y287: =Y286 -> 0 | Z287: 0 | AA287: 0
A288: 21 | B288: Save on Energy Coupon Program | C288: Verified | AM288: =SUM(Y288:AL288) -> 0
B289: Adjustment to 2016 savings | C289: True-up | AB289: =AB288 -> 0 | AC289: 0 | AD289: 0 | AE289: 0 | AF289: 0 | AG289: 0 | AH289: 0 | AI289: 0 | AJ289: 0 | AK289: 0 | AL289: 0
A291: 22 | B291: Save on Energy Heating and Cooling Program | C291: Verified | D291: 1213321.591 | E291: 1213321.591 | F291: 1213321.591 | G291: 1213321.591 | H291: 1213321.591 | I291: 1213321.591 | J291: 1213321.591 | K291: 1213158.407 | L291: 1213158.407 | M291: 1208247.243 | O291: 78.89928823 | P291: 78.89928823 | Q291: 78.89928823 | R291: 78.89928823 | S291: 78.89928823 | T291: 78.89928823 | U291: 78.89928823 | V291: 78.89782194 | W291: 78.89782194 | X291: 78.58951234 | Y291: 1 | Z291: 0 | AA291: 0 | AM291: =SUM(Y291:AL291) -> 1
... 596 more rows

Sheet CDM (Load Forecast)
M2: Cumulative CDM
B3: Implementation Year | C3: Persistence Year | D3: Residential | E3: GS<50 kW | F3: GS>50 kW | G3: Streetlights | H3: Unmetered Scattered Load | M3: =C3 -> Persistence Year | N3: Residential | O3: GS<50 kW | P3: GS>50 kW | Q3: Streetlights | R3: Unmetered Scattered Load | S3: Total
B5: 2012 | C5: 2012 | D5: 182798.3681 | E5: 637416.2213 | F5: 900164.4393 | I5: =SUM(D5:H5) -> 1720379.029 | M5: 2012 | N5: =SUMIFS(D:D,$C:$C,$M5)-SUMIFS(D:D,$B:$B,$M5,$C:$C,$M5)/2 -> 91399.18407 | O5: 318708.1107 | P5: 450082.2197 | Q5: 0 | R5: 0 | S5: 860189.5144
B6: 2012 | C6: 2013 | D6: 182798.3682 | E6: 629827.4744 | F6: 885001.9987 | I6: =SUM(D6:H6) -> 1697627.841 | M6: =M5+1 -> 2013 | N6: 275682.3715 | O6: 1034472.771 | P6: 1203803.717 | Q6: 0 | R6: 0 | S6: 2513958.859
B7: 2012 | C7: 2014 | D7: 182798.3682 | E7: 629297.0123 | F7: 883979.9589 | I7: 1696075.339 | M7: 2014 | N7: 684035.3988 | O7: 2039315.516 | P7: 1774172.989 | Q7: 0 | R7: 0 | S7: 4497523.903
B8: 2012 | C8: 2015 | D8: 181956.9353 | E8: 553022.6617 | F8: 860030.0927 | I8: 1595009.69 | M8: 2015 | N8: 1232498.957 | O8: 2861281.76 | P8: 2416176.743 | Q8: 0 | R8: 0 | S8: 6509957.459
B9: 2012 | C9: 2016 | D9: 161602.9466 | E9: 553022.6617 | F9: 842175.0927 | I9: 1556800.701 | M9: 2016 | N9: 2380443.499 | O9: 2961943.038 | P9: 3069717.876 | Q9: 0 | R9: 0 | S9: 8412104.412
B10: 2012 | C10: 2017 | D10: 121505.369 | E10: 457162.8356 | F10: 840366.6992 | I10: 1419034.904 | M10: 2017 | N10: 5089987.724 | O10: 2995907.493 | P10: 4343071.988 | Q10: 691627.5 | R10: 0 | S10: 13120594.7
B11: 2012 | C11: 2018 | D11: 101166.1494 | E11: 452433.0113 | F11: 831253.7598 | I11: 1384852.92 | M11: 2018 | N11: 6903258.382 | O11: 3158722.005 | P11: 5774540.314 | Q11: 1402801.491 | R11: 0 | S11: 17239322.19
B12: 2012 | C12: 2019 | D12: 100336.3784 | E12: 452433.0113 | F12: 831253.7598 | I12: 1384023.149 | M12: 2019 | N12: 7269766.055 | O12: 3248327.936 | P12: 6944190.656 | Q12: 1402801.491 | R12: 0 | S12: 18865086.14
B13: 2012 | C13: 2020 | D13: 91876.37841 | E13: 426996.1313 | F13: 782244.5935 | I13: 1301117.103 | M13: 2020 | N13: 7258555.356 | O13: 3240659.757 | P13: 7626281.457 | Q13: 1402801.491 | R13: 0 | S13: 19528298.06
B14: 2012 | C14: 2021 | D14: 73137.7848 | E14: 254516.5944 | F14: 449928.7464 | I14: 777583.1256 | M14: 2021 | N14: 6090798.411 | O14: 3084427.086 | P14: 7414483.004 | Q14: 1402801.491 | R14: 0 | S14: 17992509.99
B15: 2012 | C15: 2022 | D15: 66606.31742 | E15: 245904.2554 | F15: 433335.3766 | I15: 745845.9494 | M15: 2022 | N15: 6066580.852 | O15: 3021765.265 | P15: 7326926.044 | Q15: 1388448.545 | R15: 0 | S15: 17803720.71
B16: 2012 | C16: 2023 | D16: 65592.00161 | E16: 241574.7049 | F16: 433335.3766 | I16: 740502.0831 | M16: 2023 | N16: 5984797.697 | O16: 2921134.032 | P16: 7220699.82 | Q16: 1388448.545 | R16: 0 | S16: 17515080.09
B18: 2013 | C18: 2013 | D18: 185768.0067 | E18: 809290.5934 | F18: 637603.436 | I18: 1632662.036
B19: 2013 | C19: 2014 | D19: 185584.9589 | E19: 802720.7347 | F19: 626889.9981 | I19: 1615195.692
B20: 2013 | C20: 2015 | D20: 177580.0396 | E20: 799187.418 | F20: 624924.9566 | I20: 1601692.414
B21: 2013 | C21: 2016 | D21: 170630.6454 | E21: 700542.8941 | F21: 624924.9566 | I21: 1496098.496
B22: 2013 | C22: 2017 | D22: 152850.2777 | E22: 613144.3541 | F22: 612414.7528 | I22: 1378409.385
B23: 2013 | C23: 2018 | D23: 140810.956 | E23: 609054.9394 | F23: 606060.5011 | I23: 1355926.397
B24: 2013 | C24: 2019 | D24: 139608.3319 | E24: 609054.9394 | F24: 606060.5011 | I24: 1354723.772
B25: 2013 | C25: 2020 | D25: 138728.49 | E25: 607696.2288 | F25: 603949.2969 | I25: 1350374.016
B26: 2013 | C26: 2021 | D26: 126541.3239 | E26: 606701.7781 | F26: 602404.0905 | I26: 1335647.193
B27: 2013 | C27: 2022 | D27: 126541.3239 | E27: 576890.9436 | F27: 556083.1471 | I27: 1259515.415
B28: 2013 | C28: 2023 | D28: 83759.90425 | E28: 518135.3457 | F28: 481172.9847 | I28: 1083068.235
B30: 2014 | C30: 2014 | D30: 631304.1434 | E30: 1214595.537 | F30: 526606.0637 | I30: 2372505.744
B31: 2014 | C31: 2015 | D31: 578637.4546 | E31: 1210974.464 | F31: 526057.5787 | I31: 2315669.497
B32: 2014 | C32: 2016 | D32: 547051.6928 | E32: 886424.0977 | F32: 526057.5787 | I32: 1959533.369
B33: 2014 | C33: 2017 | D33: 545095.1664 | E33: 822732.1864 | F33: 519764.4426 | I33: 1887591.795
B34: 2014 | C34: 2018 | D34: 527221.3701 | E34: 822732.1864 | F34: 323943.7325 | I34: 1673897.289
B35: 2014 | C35: 2019 | D35: 508443.9274 | E35: 822732.1864 | F35: 323943.7325 | I35: 1655119.846
B36: 2014 | C36: 2020 | D36: 506523.3637 | E36: 818037.9073 | F36: 316943.1343 | I36: 1641504.405
B37: 2014 | C37: 2021 | D37: 501621.7347 | E37: 818037.9073 | F37: 316943.1343 | I37: 1636602.776
B38: 2014 | C38: 2022 | D38: 484115.0761 | E38: 816974.6176 | F38: 315357.446 | I38: 1616447.14
B39: 2014 | C39: 2023 | D39: 450894.0695 | E39: 796840.5489 | F39: 285331.4244 | I39: 1533066.043
B41: 2015 | C41: 2015 | D41: ='5. 2015-2020 LRAM'!Y195 -> 588649.0549 | E41: ='5. 2015-2020 LRAM'!Z195 -> 596194.4325 | F41: ='5. 2015-2020 LRAM'!AA195 -> 810328.2294 | I41: 1995171.717
B42: 2015 | C42: 2016 | D42: ='5. 2015-2020 LRAM'!Y208 -> 578989.8183 | E42: ='5. 2015-2020 LRAM'!Z208 -> 569603.0953 | F42: ='5. 2015-2020 LRAM'!AA208 -> 810328.2294 | I42: 1958921.143
B43: 2015 | C43: 2017 | D43: ='5. 2015-2020 LRAM'!Y209 -> 578377.5112 | E43: ='5. 2015-2020 LRAM'!Z209 -> 540951.0828 | F43: ='5. 2015-2020 LRAM'!AA209 -> 810328.5871 | I43: 1929657.181
B44: 2015 | C44: 2018 | D44: ='5. 2015-2020 LRAM'!Y210 -> 577660.7956 | E44: ='5. 2015-2020 LRAM'!Z210 -> 553114.8149 | F44: ='5. 2015-2020 LRAM'!AA210 -> 823424.8549 | I44: 1954200.465
B45: 2015 | C45: 2019 | D45: ='5. 2015-2020 LRAM'!Y211 -> 572253.9582 | E45: ='5. 2015-2020 LRAM'!Z211 -> 553114.8149 | F45: ='5. 2015-2020 LRAM'!AA211 -> 823424.8549 | I45: 1948793.628
B46: 2015 | C46: 2020 | D46: ='5. 2015-2020 LRAM'!Y212 -> 566149.3318 | E46: ='5. 2015-2020 LRAM'!Z212 -> 553114.8149 | F46: ='5. 2015-2020 LRAM'!AA212 -> 823424.8549 | I46: 1942689.002
B47: 2015 | C47: 2021 | D47: 565513.4434 | E47: 552293.9223 | F47: 817674.9038 | I47: 1935482.27
B48: 2015 | C48: 2022 | D48: 565332.1938 | E48: 552293.9598 | F48: 817674.9441 | I48: 1935301.098
B49: 2015 | C49: 2023 | D49: 560739.1642 | E49: 551304.0107 | F49: 816609.1004 | I49: 1928652.275
B51: 2016 | C51: 2016 | D51: ='5. 2015-2020 LRAM'!Y378 -> 1844336.791 | E51: ='5. 2015-2020 LRAM'!Z378 -> 504700.5781 | F51: ='5. 2015-2020 LRAM'!AA378 -> 532464.0366 | I51: 2881501.406
B52: 2016 | C52: 2017 | D52: ='5. 2015-2020 LRAM'!Y392 -> 1527194.791 | E52: ='5. 2015-2020 LRAM'!Z392 -> 504299.5338 | F52: ='5. 2015-2020 LRAM'!AA392 -> 532464.0979 | I52: 2563958.423
B53: 2016 | C53: 2018 | D53: ='5. 2015-2020 LRAM'!Y393 -> 1527194.791 | E53: ='5. 2015-2020 LRAM'!Z393 -> 504299.5338 | F53: ='5. 2015-2020 LRAM'!AA393 -> 532464.0979 | I53: 2563958.423
B54: 2016 | C54: 2019 | D54: ='5. 2015-2020 LRAM'!Y394 -> 1527194.791 | E54: ='5. 2015-2020 LRAM'!Z394 -> 483103.0422 | F54: ='5. 2015-2020 LRAM'!AA394 -> 532464.0979 | I54: 2542761.931
B55: 2016 | C55: 2020 | D55: ='5. 2015-2020 LRAM'!Y395 -> 1527194.791 | E55: ='5. 2015-2020 LRAM'!Z395 -> 467573.6256 | F55: ='5. 2015-2020 LRAM'!AA395 -> 532464.0979 | I55: 2527232.514
B56: 2016 | C56: 2021 | D56: 1527194.791 | E56: 454530.3177 | F56: 511490.3312 | I56: 2493215.44
B57: 2016 | C57: 2022 | D57: 1527194.899 | E57: 454530.43 | F57: 511490.5118 | I57: 2493215.841
B58: 2016 | C58: 2023 | D58: 1527021.516 | E58: 454530.43 | F58: 511490.5118 | I58: 2493042.458
B60: 2017 | C60: 2017 | D60: ='5. 2015-2020 LRAM'!Y561 -> 4329929.217 | E60: ='5. 2015-2020 LRAM'!Z561 -> 115235 | F60: ='5. 2015-2020 LRAM'!AA561 -> 2055466.817 | G60: ='5. 2015-2020 LRAM'!AB561 -> 1383255 | I60: 7883886.034
B61: 2017 | C61: 2018 | D61: ='5. 2015-2020 LRAM'!Y576 -> 3636991.379 | E61: ='5. 2015-2020 LRAM'!Z576 -> 115480.1834 | F61: ='5. 2015-2020 LRAM'!AA576 -> 2084495.873 | G61: ='5. 2015-2020 LRAM'!AB576 -> 1402801.491 | I61: 7239768.926
B62: 2017 | C62: 2019 | D62: ='5. 2015-2020 LRAM'!Y577 -> 3636991.379 | E62: ='5. 2015-2020 LRAM'!Z577 -> 110507.8553 | F62: ='5. 2015-2020 LRAM'!AA577 -> 2084437.201 | G62: ='5. 2015-2020 LRAM'!AB577 -> 1402801.491 | I62: 7234737.926
B63: 2017 | C63: 2020 | D63: ='5. 2015-2020 LRAM'!Y578 -> 3636991.379 | E63: ='5. 2015-2020 LRAM'!Z578 -> 110507.8553 | F63: ='5. 2015-2020 LRAM'!AA578 -> 2084437.201 | G63: ='5. 2015-2020 LRAM'!AB578 -> 1402801.491 | I63: 7234737.926
B64: 2017 | C64: 2021 | D64: 2506081.379 | E64: 110507.8553 | F64: 2084437.201 | G64: 1402801.491 | I64: 6103827.926
B65: 2017 | C65: 2022 | D65: 2506116.253 | E65: 87707.75512 | F65: 2062854.319 | G65: 1388448.545 | I65: 6045126.871
B66: 2017 | C66: 2023 | D66: 2506116.253 | E66: 71289.45306 | F66: 2062660.588 | G66: 1388448.545 | I66: 6028514.839
B68: 2018 | C68: 2018 | D68: ='5. 2015-2020 LRAM'!Y744 -> 784425.881 | E68: ='5. 2015-2020 LRAM'!Z744 -> 203214.6725 | F68: ='5. 2015-2020 LRAM'!AA744 -> 1145794.989 | I68: 2133435.543
B69: 2018 | C69: 2019 | D69: ='5. 2015-2020 LRAM'!Y760 -> 778399.2892 | E69: ='5. 2015-2020 LRAM'!Z760 -> 195853.6066 | F69: ='5. 2015-2020 LRAM'!AA760 -> 1145794.989 | I69: 2120047.885
B70: 2018 | C70: 2020 | D70: ='5. 2015-2020 LRAM'!Y761 -> 778015.6216 | E70: ='5. 2015-2020 LRAM'!Z761 -> 180522.6148 | F70: ='5. 2015-2020 LRAM'!AA761 -> 1140128.914 | I70: =SUM(D70:H70) -> 2098667.15
B71: 2018 | C71: 2021 | D71: 777631.9537 | E71: 180402.4665 | F71: 1140128.914 | I71: 2098163.334
B72: 2018 | C72: 2022 | D72: 777598.789 | E72: 180402.4665 | F72: 1140128.914 | I72: 2098130.169
B73: 2018 | C73: 2023 | D73: 777598.789 | E73: 180398.7011 | F73: 1140098.448 | I73: 2098095.938
B75: 2019 | C75: 2019 | D75: ='5. 2015-2020 LRAM'!Y927 -> 13076 | E75: ='5. 2015-2020 LRAM'!Z927 -> 43056.96 | F75: ='5. 2015-2020 LRAM'!AA927 -> 1193623.04 | I75: 1249756
B76: 2019 | C76: 2020 | D76: ='5. 2015-2020 LRAM'!Y944 -> 13076 | E76: ='5. 2015-2020 LRAM'!Z944 -> 41244.40413 | F76: ='5. 2015-2020 LRAM'!AA944 -> 1193623.04 | I76: 1247943.444
B77: 2019 | C77: 2021 | D77: 13076 | E77: 37503.89468 | F77: 1193343.033 | I77: 1243922.928
B78: 2019 | C78: 2022 | D78: 13076 | E78: 37474.3099 | F78: 1193343.033 | I78: 1243893.343
B79: 2019 | C79: 2023 | D79: 13076 | E79: 37474.3099 | F79: 1193343.033 | I79: 1243893.343
B81: 2020 | C81: 2020 | D81: ='5. 2015-2020 LRAM'!Y1110 -> 0 | E81: ='5. 2015-2020 LRAM'!Z1110 -> 69932.35 | F81: ='5. 2015-2020 LRAM'!AA1110 -> 298132.65 | I81: 368065
B82: 2020 | C82: 2021 | D82: 0 | E82: 69932.35 | F82: 298132.65 | I82: 368065
B83: 2020 | C83: 2022 | D83: 0 | E83: 69586.52725 | F83: 296658.353 | I83: 366244.8802
B84: 2020 | C84: 2023 | D84: 0 | E84: 69586.52725 | F84: 296658.353 | I84: 366244.8802
B86: 2021 | C86: 2021 | I86: 0
B87: 2021 | C87: 2022 | I87: 0
B88: 2021 | C88: 2023 | I88: 0
B90: 2022 | C90: 2023 | I90: 0
B91: 2022 | C91: 2024 | I91: 0
B93: 2023 | C93: 2023 | I93: 0

Sheet 5. 2015-2020 LRAM (Extended)
B14: Legend | C14: User Inputs (Green)
C15: Auto Populated Cells (White)
C16: Instructions (Grey)
B18: Instructions | C18: 1. LDCs can apply for disposition of LRAMVA amounts at any time, but at a minimum, must do so as part of a cost of service (COS) application. The following LRAMVA work forms apply to LDCs that need to recover lost revenues from the 2015-2020 period. Please input or manually link the savings, adjustments and program savings persistence data in these tables from the LDC's Persistence Reports provided by the IESO (in Tab 7). As noted earlier, persistence data is available upon request from the IESO. Please also be advised that the same rate classes (of up to 14) are carried over from the Summary Tab 1.
C19: 2. Please ensure that the IESO verified savings adjustments apply back to the program year it relates to. For example, savings adjustments related to 2016 programs that were reported by the IESO in 2017 should be included in the 2016 program savings table. In order for persisting savings to be claimed in future years, past year's initiative level savings results need to be filled out in the tables below. If the IESO adjustments were made available to the LDC after the LRAMVA was approved, the persistence of those savings adjustments in the future can be claimed as approved LRAMVA amounts are considered to be final.
C20: 3. The work forms below include the monthly multipliers for most programs in order to claim demand savings from energy efficiency programs, consistent with the monthly multipliers indicated in the OEB's updated LRAM policy related to peak demand savings in EB-2016-0182. Demand Response (DR3) savings should generally not be included with the LRAMVA calculation, unless suported by empirical evidence. LDCs are requested to confirm the monthly multipliers for all programs each year as placeholder values are provided. If a different monthly multiplier is used, please include rationale in Tab 1-a and highlight the new multiplier that has been used.
C21: 4. LDC are requested to input the applicable rate class allocation percentages to allocate actual savings to the rate classes. The generic template currently includes the same allocation percentage for program savings and its savings adjustments. If a different allocation is proposed for savings adjustments, LDCs must provide supporting rationale in Tab 1-a and highlight the change.
C22: 5. The persistence of future savings is expected to be included in the distributor's load forecast after re-basing. LDCs are requested to delete the applicable savings persistence rows (auto-calculated after the LRAMVA totals for the year) if future year's persistence of savings is already captured in the updated load forecast. Please also provide assumptions about the years in which persistence is captured in the load forecast calculation in the "Notes" section below each table.
B24: Tables | C24: Table 5-a. 2015 Lost Revenues
C25: Table 5-b. 2016 Lost Revenues
C26: Table 5-c. 2017 Lost Revenues
C27: Table 5-d. 2018 Lost Revenues
C28: Table 5-e. 2019 Lost Revenues
C29: Table 5-f. 2020 Lost Revenues
B33: Table 5-a. 2015 Lost Revenues Work Form
B34: Program | C34: Results Status | D34: Net Energy Savings (kWh) | E34: Net Energy Savings Persistence (kWh) | N34: Monthly Multiplier | O34: Net Demand Savings (kW) | P34: Net Peak Demand Savings Persistence (kW) | Y34: Rate Allocations for LRAMVA
D35: 2015 | E35: 2016 | F35: 2017 | G35: 2018 | H35: 2019 | I35: 2020 | J35: 2021 | K35: 2022 | L35: 2023 | M35: 2024 | O35: 2015 | P35: 2016 | Q35: 2017 | R35: 2018 | S35: 2019 | T35: 2020 | U35: 2021 | V35: 2022 | W35: 2023 | X35: 2024 | Y35: Residential | Z35: GS<50 kW | AA35: GS>50 kW | AB35: Streetlights | AC35: Unmetered Scattered Load | AM35: Total
B36: Legacy Framework | Y36: kWh | Z36: kWh | AA36: kWh | AB36: kWh | AC36: kWh | AD36: 0 | AE36: 0 | AF36: 0 | AG36: 0 | AH36: 0 | AI36: 0 | AJ36: 0 | AK36: 0 | AL36: 0
B37: Residential Program
A38: 1 | B38: Coupon Initiative | C38: Verified | D38: 40747.33786 | E38: 40384.40059 | F38: 40384.40059 | G38: 40384.40059 | H38: 40384.40059 | I38: 40384.40059 | J38: 40384.40059 | K38: 40373.4263 | L38: 40373.4263 | M38: 40373.4263 | O38: 2.595545284 | P38: 2.572761063 | Q38: 2.572761063 | R38: 2.572761063 | S38: 2.572761063 | T38: 2.572761063 | U38: 2.572761063 | V38: 2.57150829 | W38: 2.57150829 | X38: 2.57150829 | Y38: 1 | Z38: 0 | AA38: 0 | AM38: =SUM(Y38:AL38) -> 1
B39: Adjustment to 2015 savings | C39: True-up | D39: 0 | E39: 0 | F39: 0 | G39: 0 | H39: 0 | I39: 0 | J39: 0 | K39: 0 | L39: 0 | M39: 0 | O39: 0 | P39: 0 | Q39: 0 | R39: 0 | S39: 0 | T39: 0 | U39: 0 | V39: 0 | W39: 0 | X39: 0 | Y39: 1 | Z39: 0 | AA39: 0 | AB39: =AB38 -> 0 | AC39: 0 | AD39: 0 | AE39: 0 | AF39: 0 | AG39: 0 | AH39: 0 | AI39: 0 | AJ39: 0 | AK39: 0 | AL39: 0
A41: 2 | B41: Bi-Annual Retailer Event Initiative | C41: Verified | D41: 96163.76553 | E41: 92853.36485 | F41: 92853.36485 | G41: 92853.36485 | H41: 92853.36485 | I41: 92853.36485 | J41: 92853.36485 | K41: 92853.36485 | L41: 92853.36485 | M41: 92853.36485 | O41: 7.149850452 | P41: 6.942032439 | Q41: 6.942032439 | R41: 6.942032439 | S41: 6.942032439 | T41: 6.942032439 | U41: 6.942032439 | V41: 6.942032439 | W41: 6.942032439 | X41: 6.942032439 | Y41: 1 | Z41: 0 | AA41: 0 | AM41: =SUM(Y41:AL41) -> 1
B42: Adjustment to 2015 savings | C42: True-up | D42: 0 | E42: 0 | F42: 0 | G42: 0 | H42: 0 | I42: 0 | J42: 0 | K42: 0 | L42: 0 | M42: 0 | O42: 0 | P42: 0 | Q42: 0 | R42: 0 | S42: 0 | T42: 0 | U42: 0 | V42: 0 | W42: 0 | X42: 0 | Y42: 1 | Z42: 0 | AA42: 0 | AB42: =AB41 -> 0 | AC42: 0 | AD42: 0 | AE42: 0 | AF42: 0 | AG42: 0 | AH42: 0 | AI42: 0 | AJ42: 0 | AK42: 0 | AL42: 0
A44: 3 | B44: Appliance Retirement Initiative | C44: Verified | D44: 11615.87188 | E44: 11615.87188 | F44: 11615.87188 | G44: 11511.46383 | H44: 6104.626473 | I44: 0 | J44: 0 | K44: 0 | L44: 0 | M44: 0 | O44: 1.894061985 | P44: 1.894061985 | Q44: 1.894061985 | R44: 1.777307688 | S44: 0.8971612564 | T44: 0 | U44: 0 | V44: 0 | W44: 0 | X44: 0 | Y44: 1 | Z44: 0 | AA44: 0 | AM44: =SUM(Y44:AL44) -> 1
B45: Adjustment to 2015 savings | C45: True-up | D45: 0 | E45: 0 | F45: 0 | G45: 0 | H45: 0 | I45: 0 | J45: 0 | K45: 0 | L45: 0 | M45: 0 | O45: 0 | P45: 0 | Q45: 0 | R45: 0 | S45: 0 | T45: 0 | U45: 0 | V45: 0 | W45: 0 | X45: 0 | Y45: 1 | Z45: 0 | AA45: 0 | AB45: =AB44 -> 0 | AC45: 0 | AD45: 0 | AE45: 0 | AF45: 0 | AG45: 0 | AH45: 0 | AI45: 0 | AJ45: 0 | AK45: 0 | AL45: 0
A47: 4 | B47: HVAC Incentives Initiative | C47: Verified | D47: 52366.54991 | E47: 52366.54991 | F47: 52366.54991 | G47: 52366.54991 | H47: 52366.54991 | I47: 52366.54991 | J47: 52366.54991 | K47: 52366.54991 | L47: 52366.54991 | M47: 52366.54991 | O47: 26.93831774 | P47: 26.93831774 | Q47: 26.93831774 | R47: 26.93831774 | S47: 26.93831774 | T47: 26.93831774 | U47: 26.93831774 | V47: 26.93831774 | W47: 26.93831774 | X47: 26.93831774 | Y47: 1 | Z47: 0 | AA47: 0 | AM47: =SUM(Y47:AL47) -> 1
B48: Adjustment to 2015 savings | C48: True-up | D48: 0 | E48: 0 | F48: 0 | G48: 0 | H48: 0 | I48: 0 | J48: 0 | K48: 0 | L48: 0 | M48: 0 | O48: 0 | P48: 0 | Q48: 0 | R48: 0 | S48: 0 | T48: 0 | U48: 0 | V48: 0 | W48: 0 | X48: 0 | Y48: 1 | Z48: 0 | AA48: 0 | AB48: =AB47 -> 0 | AC48: 0 | AD48: 0 | AE48: 0 | AF48: 0 | AG48: 0 | AH48: 0 | AI48: 0 | AJ48: 0 | AK48: 0 | AL48: 0
A50: 5 | B50: Residential New Construction and Major Renovation Initiative | C50: Verified | AM50: =SUM(Y50:AL50) -> 0
B51: Adjustment to 2015 savings | C51: True-up | Y51: 0 | Z51: 0 | AA51: 0 | AB51: =AB50 -> 0 | AC51: 0 | AD51: 0 | AE51: 0 | AF51: 0 | AG51: 0 | AH51: 0 | AI51: 0 | AJ51: 0 | AK51: 0 | AL51: 0
B53: Commercial & Institutional Program
A54: 6 | B54: Energy Audit Initiative | C54: Verified | N54: 12 | AM54: =SUM(Y54:AL54) -> 0
B55: Adjustment to 2015 savings | C55: True-up | N55: 12 | Y55: 0 | Z55: 0 | AA55: 0 | AB55: =AB54 -> 0 | AC55: 0 | AD55: 0 | AE55: 0 | AF55: 0 | AG55: 0 | AH55: 0 | AI55: 0 | AJ55: 0 | AK55: 0 | AL55: 0
A57: 7 | B57: Efficiency: Equipment Replacement Incentive Initiative | C57: Verified | D57: 801847.3259 | E57: 801847.3259 | F57: 799670.016 | G57: 799670.016 | H57: 799670.016 | I57: 799670.016 | J57: 783510.8875 | K57: 783510.8875 | L57: 781455.0947 | M57: 728631.7942 | N57: 12 | O57: 113.7699364 | P57: 113.7699364 | Q57: 113.0836554 | R57: 113.0836554 | S57: 113.0836554 | T57: 113.0836554 | U57: 111.2609444 | V57: 111.2609444 | W57: 110.6103817 | X57: 104.6543606 | Y57: 0 | Z57: 0.4815412583 | AA57: 0.5184587417 | AM57: =SUM(Y57:AL57) -> 1
B58: Adjustment to 2015 savings | C58: True-up | D58: -108625 | E58: -108625 | F58: -106447 | G58: -81187 | H58: -81187 | I58: -81187 | J58: -65028 | K58: -65027.92227 | L58: -65027.92227 | M58: -69894.35975 | N58: 12 | O58: -27.91696614 | P58: -27.91696614 | Q58: -20 | R58: -20 | S58: -20 | T58: -20 | U58: =T58/T57*U57 -> -19.67763494 | V58: =U58/U57*V57 -> -19.67763494 | W58: -19.56257628 | X58: -18.50919309 | Y58: 0 | Z58: 0.4815412583 | AA58: 0.5184587417 | AB58: =AB57 -> 0 | AC58: 0 | AD58: 0 | AE58: 0 | AF58: 0 | AG58: 0 | AH58: 0 | AI58: 0 | AJ58: 0 | AK58: 0 | AL58: 0
A60: 8 | B60: Direct Install Lighting and Water Heating Initiative | C60: Verified | D60: 200344.689 | E60: 173753.3517 | F60: 145101.0069 | G60: 145101.0069 | H60: 145101.0069 | I60: 145101.0069 | J60: 145101.0069 | K60: 145101.0069 | L60: 145101.0069 | M60: 145101.0069 | N60: 12 | O60: 45.67943895 | P60: 39.85649308 | Q60: 32.92200142 | R60: 32.92200142 | S60: 32.92200142 | T60: 32.92200142 | U60: 32.92200142 | V60: 32.92200142 | W60: 32.92200142 | X60: 32.92200142 | Y60: 0 | Z60: 1 | AA60: 0 | AM60: =SUM(Y60:AL60) -> 1
B61: Adjustment to 2015 savings | C61: True-up | D61: -46374.68895 | E61: -19784.35174 | F61: 8868.993055 | G61: 15272.99306 | H61: 15272.99306 | I61: 15272.99306 | J61: 15272.99306 | K61: 15272.99306 | L61: 15272.99306 | M61: 15272.99306 | N61: 12 | O61: -11 | P61: -5 | Q61: 2 | R61: 4 | S61: 4 | T61: 4 | U61: 4 | V61: 4 | W61: 4 | X61: 4 | Y61: 0 | Z61: 0 | AA61: 0 | AB61: =AB60 -> 0 | AC61: 0 | AD61: 0 | AE61: 0 | AF61: 0 | AG61: 0 | AH61: 0 | AI61: 0 | AJ61: 0 | AK61: 0 | AL61: 0
A63: 9 | B63: New Construction and Major Renovation Initiative | C63: Verified | N63: 12 | AM63: =SUM(Y63:AL63) -> 0
B64: Adjustment to 2015 savings | C64: True-up | N64: 12 | Y64: 0 | Z64: 0 | AA64: 0 | AB64: =AB63 -> 0 | AC64: 0 | AD64: 0 | AE64: 0 | AF64: 0 | AG64: 0 | AH64: 0 | AI64: 0 | AJ64: 0 | AK64: 0 | AL64: 0
A66: 10 | B66: Existing Building Commissioning Incentive Initiative | C66: Verified | N66: 3 | AM66: =SUM(Y66:AL66) -> 0
B67: Adjustment to 2015 savings | C67: True-up | N67: 3 | Y67: 0 | Z67: 0 | AA67: 0 | AB67: =AB66 -> 0 | AC67: 0 | AD67: 0 | AE67: 0 | AF67: 0 | AG67: 0 | AH67: 0 | AI67: 0 | AJ67: 0 | AK67: 0 | AL67: 0
B69: Industrial Program
A70: 11 | B70: Process and Systems Upgrades Initiatives - Project Incentive Initiative | C70: Verified | N70: 12 | AM70: =SUM(Y70:AL70) -> 0
B71: Adjustment to 2015 savings | C71: True-up | N71: 12 | Y71: 0 | Z71: 0 | AA71: 0 | AB71: =AB70 -> 0 | AC71: 0 | AD71: 0 | AE71: 0 | AF71: 0 | AG71: 0 | AH71: 0 | AI71: 0 | AJ71: 0 | AK71: 0 | AL71: 0
A73: 12 | B73: Process and Systems Upgrades Initiatives - Monitoring and Targeting Initiative | C73: Verified | N73: 12 | AM73: =SUM(Y73:AL73) -> 0
B74: Adjustment to 2015 savings | C74: True-up | N74: 12 | Y74: 0 | Z74: 0 | AA74: 0 | AB74: =AB73 -> 0 | AC74: 0 | AD74: 0 | AE74: 0 | AF74: 0 | AG74: 0 | AH74: 0 | AI74: 0 | AJ74: 0 | AK74: 0 | AL74: 0
A76: 13 | B76: Process and Systems Upgrades Initiatives - Energy Manager Initiative | C76: Verified | D76: 16371.36353 | E76: 16371.36353 | F76: 16371.36353 | G76: 16371.36353 | H76: 16371.36353 | I76: 16371.36353 | J76: 16371.36353 | K76: 16371.36353 | L76: 16371.36353 | M76: 16371.36353 | N76: 12 | O76: 5.1296895 | P76: 5.1296895 | Q76: 5.1296895 | R76: 5.1296895 | S76: 5.1296895 | T76: 5.1296895 | U76: 5.1296895 | V76: 5.1296895 | W76: 5.1296895 | X76: 5.1296895 | Y76: 0 | Z76: 0 | AA76: 1 | AM76: =SUM(Y76:AL76) -> 1
B77: Adjustment to 2015 savings | C77: True-up | D77: 0 | E77: 0 | F77: 0 | G77: 0 | H77: 0 | I77: 0 | J77: 0 | K77: 0 | L77: 0 | M77: 0 | N77: 12 | O77: 0 | P77: 0 | Q77: 0 | R77: 0 | S77: 0 | T77: 0 | U77: 0 | V77: 0 | W77: 0 | X77: 0 | Y77: 0 | Z77: 0 | AA77: 1 | AB77: =AB76 -> 0 | AC77: 0 | AD77: 0 | AE77: 0 | AF77: 0 | AG77: 0 | AH77: 0 | AI77: 0 | AJ77: 0 | AK77: 0 | AL77: 0
B79: Low Income Program
A80: 14 | B80: Low Income Initiative | C80: Verified | D80: 10324.69081 | E80: 7074.119881 | F80: 6461.81279 | G80: 5849.505199 | H80: 5849.505199 | I80: 5849.505199 | J80: 5213.616879 | K80: 5213.616879 | L80: 620.587326 | M80: 620.587326 | N80: 12 | O80: 0.679628097 | P80: 0.5107729651 | Q80: 0.4789658722 | R80: 0.4471587569 | S80: 0.4471587569 | T80: 0.4471587569 | U80: 0.4141267121 | V80: 0.4141267121 | W80: 0.1755358232 | X80: 0.1755358232 | Y80: 1 | Z80: 0 | AA80: 0 | AM80: =SUM(Y80:AL80) -> 1
B81: Adjustment to 2015 savings | C81: True-up | D81: 0 | E81: 0 | F81: 0 | G81: 0 | H81: 0 | I81: 0 | J81: 0 | K81: 0 | L81: 0 | M81: 0 | N81: 12 | O81: 0 | P81: 0 | Q81: 0 | R81: 0 | S81: 0 | T81: 0 | U81: 0 | V81: 0 | W81: 0 | X81: 0 | Y81: 1 | Z81: 0 | AA81: 0 | AB81: =AB80 -> 0 | AC81: 0 | AD81: =AD80 -> 0 | AE81: =AE80 -> 0 | AF81: 0 | AG81: 0 | AH81: 0 | AI81: 0 | AJ81: 0 | AK81: 0 | AL81: 0
B83: Other
A84: 15 | B84: Aboriginal Conservation Program | C84: Verified | N84: 0 | AM84: =SUM(Y84:AL84) -> 0
B85: Adjustment to 2015 savings | C85: True-up | N85: 0 | Y85: 0 | Z85: 0 | AA85: 0 | AB85: =AB84 -> 0 | AC85: 0 | AD85: =AD84 -> 0 | AE85: =AE84 -> 0 | AF85: 0 | AG85: 0 | AH85: 0 | AI85: 0 | AJ85: 0 | AK85: 0 | AL85: 0
A87: 16 | B87: Program Enabled Savings | C87: Verified | N87: 0 | AM87: =SUM(Y87:AL87) -> 0
B88: Adjustment to 2015 savings | C88: True-up | N88: 0 | Y88: 0 | Z88: 0 | AA88: 0 | AB88: =AB87 -> 0 | AC88: 0 | AD88: =AD87 -> 0 | AE88: =AE87 -> 0 | AF88: 0 | AG88: 0 | AH88: 0 | AI88: 0 | AJ88: 0 | AK88: 0 | AL88: 0
B90: Conservation Fund Pilots
A91: 17 | B91: Conservation Fund Pilot - EnerNOC | C91: Verified | N91: 0 | AM91: =SUM(Y91:AL91) -> 0
B92: Adjustment to 2015 savings | C92: True-up | N92: 0 | Y92: 0 | Z92: 0 | AA92: 0 | AB92: =AB91 -> 0 | AC92: 0 | AD92: 0 | AE92: 0 | AF92: 0 | AG92: 0 | AH92: 0 | AI92: 0 | AJ92: 0 | AK92: 0 | AL92: 0
A94: 18 | B94: Loblaws Pilot | C94: Verified | N94: 0 | AM94: =SUM(Y94:AL94) -> 0
B95: Adjustment to 2015 savings | C95: True-up | N95: 0 | Y95: 0 | Z95: 0 | AA95: 0 | AB95: =AB94 -> 0 | AC95: 0 | AD95: 0 | AE95: 0 | AF95: 0 | AG95: 0 | AH95: 0 | AI95: 0 | AJ95: 0 | AK95: 0 | AL95: 0
A97: 19 | B97: Conservation Fund Pilot - SEG | C97: Verified | N97: 0 | AM97: =SUM(Y97:AL97) -> 0
B98: Adjustment to 2015 savings | C98: True-up | N98: 0 | Y98: 0 | Z98: 0 | AA98: 0 | AB98: =AB97 -> 0 | AC98: 0 | AD98: 0 | AE98: 0 | AF98: 0 | AG98: 0 | AH98: 0 | AI98: 0 | AJ98: 0 | AK98: 0 | AL98: 0
A100: 20 | B100: Social Benchmarking Pliot | C100: Verified | N100: 0 | AM100: =SUM(Y100:AL100) -> 0
B101: Adjustment to 2015 savings | C101: True-up | N101: 0 | Y101: 0 | Z101: 0 | AA101: 0 | AB101: =AB100 -> 0 | AC101: 0 | AD101: 0 | AE101: 0 | AF101: 0 | AG101: 0 | AH101: 0 | AI101: 0 | AJ101: 0 | AK101: 0 | AL101: 0
B103: Conservation First Framework
B104: Residential Province-Wide Programs
A105: 21 | B105: Save on Energy Coupon Program | C105: Verified | D105: 272095.7722 | E105: 269742.4997 | F105: 269742.4997 | G105: 269742.4997 | H105: 269742.4997 | I105: 269742.4997 | J105: 269742.4997 | K105: 269587.0895 | L105: 269587.0895 | M105: 269587.0895 | O105: 17.46995117 | P105: 17.32221908 | Q105: 17.32221908 | R105: 17.32221908 | S105: 17.32221908 | T105: 17.32221908 | U105: 17.32221908 | V105: 17.3044782 | W105: 17.3044782 | X105: 17.3044782 | Y105: 1 | Z105: 0 | AA105: 0 | AM105: =SUM(Y105:AL105) -> 1
B106: Adjustment to 2015 savings | C106: True-up | D106: 26760.27134 | E106: 26378.21619 | F106: 26378.21619 | G106: 26378.21619 | H106: 26378.21619 | I106: 26378.21619 | J106: 26378.21619 | K106: 26363.35099 | L106: 26363.35099 | M106: 26363.35099 | O106: 1.719892579 | P106: 1.695908189 | Q106: 1.695908189 | R106: 1.695908189 | S106: 1.695908189 | T106: 1.695908189 | U106: 1.695908189 | V106: 1.694211248 | W106: 1.694211248 | X106: 1.694211248 | Y106: 1 | Z106: 0 | AA106: 0 | AB106: =AB105 -> 0 | AC106: 0 | AD106: 0 | AE106: 0 | AF106: 0 | AG106: 0 | AH106: 0 | AI106: 0 | AJ106: 0 | AK106: 0 | AL106: 0
A108: 22 | B108: Save on Energy Heating and Cooling Program | C108: Verified | D108: 71915.79536 | E108: 71915.79536 | F108: 71915.79536 | G108: 71915.79536 | H108: 71915.79536 | I108: 71915.79536 | J108: 71915.79536 | K108: 71915.79536 | L108: 71915.79536 | M108: 71915.79536 | O108: 36.79374992 | P108: 36.79374992 | Q108: 36.79374992 | R108: 36.79374992 | S108: 36.79374992 | T108: 36.79374992 | U108: 36.79374992 | V108: 36.79374992 | W108: 36.79374992 | X108: 36.79374992 | Y108: 1 | Z108: 0 | AA108: 0 | AM108: =SUM(Y108:AL108) -> 1
B109: Adjustment to 2015 savings | C109: True-up | D109: 6659 | E109: 6659 | F109: 6659 | G109: 6659 | H109: 6659 | I109: 6659 | J109: 6659 | K109: 6659 | L109: 6659 | M109: 6659 | O109: 3.4535 | P109: 3.4535 | Q109: 3.4535 | R109: 3.4535 | S109: 3.4535 | T109: 3.4535 | U109: 3.4535 | V109: 3.4535 | W109: 3.4535 | X109: 3.4535 | Y109: 1 | Z109: 0 | AA109: 0 | AB109: =AB108 -> 0 | AC109: 0 | AD109: 0 | AE109: 0 | AF109: 0 | AG109: 0 | AH109: 0 | AI109: 0 | AJ109: 0 | AK109: 0 | AL109: 0
A111: 23 | B111: Save on Energy New Construction Program | C111: Verified | AM111: =SUM(Y111:AL111) -> 0
B112: Adjustment to 2015 savings | C112: True-up | Y112: 0 | Z112: 0 | AA112: 0 | AB112: =AB111 -> 0 | AC112: 0 | AD112: 0 | AE112: 0 | AF112: 0 | AG112: 0 | AH112: 0 | AI112: 0 | AJ112: 0 | AK112: 0 | AL112: 0
A114: 24 | B114: Save on Energy Home Assistance Program | C114: Verified | AM114: =SUM(Y114:AL114) -> 0
B115: Adjustment to 2015 savings | C115: True-up | Y115: 0 | Z115: 0 | AA115: 0 | AB115: =AB114 -> 0 | AC115: 0 | AD115: 0 | AE115: 0 | AF115: 0 | AG115: 0 | AH115: 0 | AI115: 0 | AJ115: 0 | AK115: 0 | AL115: 0
B117: Non-Residential Province-Wide Programs
A118: 25 | B118: Save on Energy Audit Funding Program | C118: Verified | N118: 12 | AM118: =SUM(Y118:AL118) -> 0
B119: Adjustment to 2015 savings | C119: True-up | N119: 12 | Y119: 0 | Z119: 0 | AA119: 0 | AB119: =AB118 -> 0 | AC119: 0 | AD119: 0 | AE119: 0 | AF119: 0 | AG119: 0 | AH119: 0 | AI119: 0 | AJ119: 0 | AK119: 0 | AL119: 0
A121: 26 | B121: Save on Energy Retrofit Program | C121: Verified | D121: 157549.1432 | E121: 157549.1432 | F121: 157549.1432 | G121: 157549.1432 | H121: 157549.1432 | I121: 157549.1432 | J121: 155886.9036 | K121: 155886.9036 | L121: 155886.9036 | M121: 150468.8252 | N121: 12 | O121: 11.25349736 | P121: 11.25349736 | Q121: 11.25349736 | R121: 11.25349736 | S121: 11.25349736 | T121: 11.25349736 | U121: 11.09171121 | V121: 11.09171121 | W121: 11.09171121 | X121: 10.56436844 | Y121: 0 | Z121: 0.1249225852 | AA121: 0.8750774148 | AM121: =SUM(Y121:AL121) -> 1
B122: Adjustment to 2015 savings | C122: True-up | D122: 339035.1402 | E122: 339035.1402 | F122: 339035.1402 | G122: 339035.1402 | H122: 339035.1402 | I122: 339035.1402 | J122: 334126.6646 | K122: 334126.6646 | L122: 334126.6646 | M122: 318625.8627 | N122: 12 | O122: 53.61957076 | P122: 53.61957076 | Q122: 53.61957076 | R122: 53.61957076 | S122: 53.61957076 | T122: 53.61957076 | U122: 52.86318614 | V122: 52.86318614 | W122: 52.86318614 | X122: 50.47454877 | Y122: 0 | Z122: 0.1249225852 | AA122: 0.8750774148 | AB122: =AB121 -> 0 | AC122: 0 | AD122: 0 | AE122: 0 | AF122: 0 | AG122: 0 | AH122: 0 | AI122: 0 | AJ122: 0 | AK122: 0 | AL122: 0
A124: 27 | B124: Save on Energy Small Business Lighting Program | C124: Verified | N124: 12 | AM124: =SUM(Y124:AL124) -> 0
B125: Adjustment to 2015 savings | C125: True-up | N125: 12 | Y125: 0 | Z125: 0 | AA125: 0 | AB125: =AB124 -> 0 | AC125: 0 | AD125: 0 | AE125: 0 | AF125: 0 | AG125: 0 | AH125: 0 | AI125: 0 | AJ125: 0 | AK125: 0 | AL125: 0
A127: 28 | B127: Save on Energy High Performance New Construction Program | C127: Verified | N127: 12 | AM127: =SUM(Y127:AL127) -> 0
B128: Adjustment to 2015 savings | C128: True-up | N128: 12 | Y128: 0 | Z128: 0 | AA128: 0 | AB128: =AB127 -> 0 | AC128: 0 | AD128: 0 | AE128: 0 | AF128: 0 | AG128: 0 | AH128: 0 | AI128: 0 | AJ128: 0 | AK128: 0 | AL128: 0
A130: 29 | B130: Save on Energy Existing Building Commissioning Program | C130: Verified | N130: 3 | AM130: =SUM(Y130:AL130) -> 0
B131: Adjustment to 2015 savings | C131: True-up | N131: 3 | Y131: 0 | Z131: 0 | AA131: 0 | AB131: =AB130 -> 0 | AC131: 0 | AD131: 0 | AE131: 0 | AF131: 0 | AG131: 0 | AH131: 0 | AI131: 0 | AJ131: 0 | AK131: 0 | AL131: 0
A133: 30 | B133: Save on Energy Process & Systems Upgrades Program | C133: Verified | N133: 12 | AM133: =SUM(Y133:AL133) -> 0
B134: Adjustment to 2015 savings | C134: True-up | N134: 12 | Y134: 0 | Z134: 0 | AA134: 0 | AB134: =AB133 -> 0 | AC134: 0 | AD134: 0 | AE134: 0 | AF134: 0 | AG134: 0 | AH134: 0 | AI134: 0 | AJ134: 0 | AK134: 0 | AL134: 0
A136: 31 | B136: Save on Energy Monitoring & Targeting Program | C136: Verified | N136: 12 | AM136: =SUM(Y136:AL136) -> 0
B137: Adjustment to 2015 savings | C137: True-up | N137: 12 | Y137: 0 | Z137: 0 | AA137: 0 | AB137: =AB136 -> 0 | AC137: 0 | AD137: 0 | AE137: 0 | AF137: 0 | AG137: 0 | AH137: 0 | AI137: 0 | AJ137: 0 | AK137: 0 | AL137: 0
A139: 32 | B139: Save on Energy Energy Manager Program | C139: Verified | N139: 12 | AM139: =SUM(Y139:AL139) -> 0
B140: Adjustment to 2015 savings | C140: True-up | N140: 12 | Y140: 0 | Z140: 0 | AA140: 0 | AB140: =AB139 -> 0 | AC140: 0 | AD140: 0 | AE140: 0 | AF140: 0 | AG140: 0 | AH140: 0 | AI140: 0 | AJ140: 0 | AK140: 0 | AL140: 0
B142: Local & Regional Programs
A143: 33 | B143: Business Refrigeration Local Program | C143: Verified | N143: 0 | AM143: =SUM(Y143:AL143) -> 0
B144: Adjustment to 2015 savings | C144: True-up | N144: 0 | Y144: 0 | Z144: 0 | AA144: 0 | AB144: =AB143 -> 0 | AC144: 0 | AD144: 0 | AE144: 0 | AF144: 0 | AG144: 0 | AH144: 0 | AI144: 0 | AJ144: 0 | AK144: 0 | AL144: 0
A146: 34 | B146: First Nation Conservation Local Program | C146: Verified | N146: 0 | AM146: =SUM(Y146:AL146) -> 0
B147: Adjustment to 2015 savings | C147: True-up | N147: 0 | Y147: 0 | Z147: 0 | AA147: 0 | AB147: =AB146 -> 0 | AC147: 0 | AD147: 0 | AE147: 0 | AF147: 0 | AG147: 0 | AH147: 0 | AI147: 0 | AJ147: 0 | AK147: 0 | AL147: 0
A149: 35 | B149: Social Benchmarking Local Program | C149: Verified | N149: 0 | AM149: =SUM(Y149:AL149) -> 0
B150: Adjustment to 2015 savings | C150: True-up | N150: 0 | Y150: 0 | Z150: 0 | AA150: 0 | AB150: =AB149 -> 0 | AC150: 0 | AD150: 0 | AE150: 0 | AF150: 0 | AG150: 0 | AH150: 0 | AI150: 0 | AJ150: 0 | AK150: 0 | AL150: 0
B152: Pilot Programs
A153: 36 | B153: Enersource Hydro Mississauga Inc. - Performance-Based Conservation Pilot Program - Conservation Fund | C153: Verified | N153: 0 | AM153: =SUM(Y153:AL153) -> 0
B154: Adjustment to 2015 savings | C154: True-up | N154: 0 | Y154: 0 | Z154: 0 | AA154: 0 | AB154: =AB153 -> 0 | AC154: 0 | AD154: 0 | AE154: 0 | AF154: 0 | AG154: 0 | AH154: 0 | AI154: 0 | AJ154: 0 | AK154: 0 | AL154: 0
A156: 37 | B156: EnWin Utilities Ltd. - Building Optimization Pilot | C156: Verified | N156: 0 | AM156: =SUM(Y156:AL156) -> 0
B157: Adjustment to 2015 savings | C157: True-up | N157: 0 | Y157: 0 | Z157: 0 | AA157: 0 | AB157: =AB156 -> 0 | AC157: 0 | AD157: 0 | AE157: 0 | AF157: 0 | AG157: 0 | AH157: 0 | AI157: 0 | AJ157: 0 | AK157: 0 | AL157: 0
A159: 38 | B159: EnWin Utilities Ltd. - Re-Invest Pilot | C159: Verified | N159: 0 | AM159: =SUM(Y159:AL159) -> 0
B160: Adjustment to 2015 savings | C160: True-up | N160: 0 | Y160: 0 | Z160: 0 | AA160: 0 | AB160: =AB159 -> 0 | AC160: 0 | AD160: 0 | AE160: 0 | AF160: 0 | AG160: 0 | AH160: 0 | AI160: 0 | AJ160: 0 | AK160: 0 | AL160: 0
A162: 39 | B162: Horizon Utilities Corporation - ECM Furnace Motor Pilot | C162: Verified | N162: 0 | AM162: =SUM(Y162:AL162) -> 0
B163: Adjustment to 2015 savings | C163: True-up | N163: 0 | Y163: 0 | Z163: 0 | AA163: 0 | AB163: =AB162 -> 0 | AC163: 0 | AD163: 0 | AE163: 0 | AF163: 0 | AG163: 0 | AH163: 0 | AI163: 0 | AJ163: 0 | AK163: 0 | AL163: 0
A165: 40 | B165: Horizon Utilities Corporation - Social Benchmarking Pilot | C165: Verified | N165: 0 | AM165: =SUM(Y165:AL165) -> 0
B166: Adjustment to 2015 savings | C166: True-up | N166: 0 | Y166: 0 | Z166: 0 | AA166: 0 | AB166: =AB165 -> 0 | AC166: 0 | AD166: 0 | AE166: 0 | AF166: 0 | AG166: 0 | AH166: 0 | AI166: 0 | AJ166: 0 | AK166: 0 | AL166: 0
A168: 41 | B168: Hydro Ottawa Limited - Conservation Voltage Regulation (CVR) Leveraging AMI Data Pilot | C168: Verified | N168: 0 | AM168: =SUM(Y168:AL168) -> 0
B169: Adjustment to 2015 savings | C169: True-up | N169: 0 | Y169: 0 | Z169: 0 | AA169: 0 | AB169: =AB168 -> 0 | AC169: 0 | AD169: 0 | AE169: 0 | AF169: 0 | AG169: 0 | AH169: 0 | AI169: 0 | AJ169: 0 | AK169: 0 | AL169: 0
A171: 42 | B171: Hydro Ottawa Limited - Residential Demand Response Wi-Fi Thermostat Pilot | C171: Verified | AM171: =SUM(Y171:AL171) -> 0
B172: Adjustment to 2015 savings | C172: True-up | Y172: 0 | Z172: 0 | AA172: 0 | AB172: =AB171 -> 0 | AC172: 0 | AD172: 0 | AE172: 0 | AF172: 0 | AG172: 0 | AH172: 0 | AI172: 0 | AJ172: 0 | AK172: 0 | AL172: 0
A174: 43 | B174: Kitchener-Wilmot Hydro Inc. - Pilot - DCKV | C174: Verified | N174: 0 | AM174: =SUM(Y174:AL174) -> 0
B175: Adjustment to 2015 savings | C175: True-up | N175: 0 | Y175: 0 | Z175: 0 | AA175: 0 | AB175: =AB174 -> 0 | AC175: 0 | AD175: 0 | AE175: 0 | AF175: 0 | AG175: 0 | AH175: 0 | AI175: 0 | AJ175: 0 | AK175: 0 | AL175: 0
A177: 44 | B177: Niagara-on-the-Lake Hydro Inc. - Direct Install Energy Efficiency Measures for the Agricultural Sector | C177: Verified | N177: 0 | AM177: =SUM(Y177:AL177) -> 0
B178: Adjustment to 2015 savings | C178: True-up | N178: 0 | Y178: 0 | Z178: 0 | AA178: 0 | AB178: =AB177 -> 0 | AC178: 0 | AD178: 0 | AE178: 0 | AF178: 0 | AG178: 0 | AH178: 0 | AI178: 0 | AJ178: 0 | AK178: 0 | AL178: 0
A180: 45 | B180: Oakville Hydro Electricity Distribution Inc. - Direct Install - Hydronic | C180: Verified | N180: 0 | AM180: =SUM(Y180:AL180) -> 0
B181: Adjustment to 2015 savings | C181: True-up | N181: 0 | Y181: 0 | Z181: 0 | AA181: 0 | AB181: =AB180 -> 0 | AC181: 0 | AD181: 0 | AE181: 0 | AF181: 0 | AG181: 0 | AH181: 0 | AI181: 0 | AJ181: 0 | AK181: 0 | AL181: 0
A183: 46 | B183: Oakville Hydro Electricity Distribution Inc. - Direct Install - RTU Controls | C183: Verified | N183: 0 | AM183: =SUM(Y183:AL183) -> 0
B184: Adjustment to 2015 savings | C184: True-up | N184: 0 | Y184: 0 | Z184: 0 | AA184: 0 | AB184: =AB183 -> 0 | AC184: 0 | AD184: 0 | AE184: 0 | AF184: 0 | AG184: 0 | AH184: 0 | AI184: 0 | AJ184: 0 | AK184: 0 | AL184: 0
A186: 47 | B186: Toronto Hydro-Electric System Limited - Direct Install - Hydronic (Pilot Savings) | C186: Verified | N186: 0 | AM186: =SUM(Y186:AL186) -> 0
B187: Adjustment to 2015 savings | C187: True-up | N187: 0 | Y187: 0 | Z187: 0 | AA187: 0 | AB187: =AB186 -> 0 | AC187: 0 | AD187: 0 | AE187: 0 | AF187: 0 | AG187: 0 | AH187: 0 | AI187: 0 | AJ187: 0 | AK187: 0 | AL187: 0
A189: 48 | B189: Toronto Hydro-Electric System Limited - Direct Install - RTU Controls (Pilot Savings) | C189: Verified | N189: 0 | AM189: =SUM(Y189:AL189) -> 0
B190: Adjustment to 2015 savings | C190: True-up | N190: 0 | Y190: 0 | Z190: 0 | AA190: 0 | AB190: =AB189 -> 0 | AC190: 0 | AD190: 0 | AE190: 0 | AF190: 0 | AG190: 0 | AH190: 0 | AI190: 0 | AJ190: 0 | AK190: 0 | AL190: 0
A192: 49 | B192: Toronto Hydro-Electric System Limited - PFP - Large (Pilot Savings) | C192: Verified | N192: 0 | AM192: =SUM(Y192:AL192) -> 0
B193: Adjustment to 2015 savings | C193: True-up | N193: 0 | Y193: 0 | Z193: 0 | AA193: 0 | AB193: =AB192 -> 0 | AC193: 0 | AD193: 0 | AE193: 0 | AF193: 0 | AG193: 0 | AH193: 0 | AI193: 0 | AJ193: 0 | AK193: 0 | AL193: 0
B195: Actual CDM Savings in 2015 | D195: =SUM(D38:D193) -> 1948797.028 | O195: =SUM(O38:O193) -> 289.229664 | Y195: =IF(Y36="kWh",SUMPRODUCT(D38:D193,Y38:Y193)) -> 588649.0549 | Z195: =IF(Z36="kWh",SUMPRODUCT(D38:D193,Z38:Z193)) -> 596194.4325 | AA195: =IF(AA36="kw",SUMPRODUCT(N38:N193,O38:O193,AA38:AA193),SUMPRODUCT(D38:D193,AA38:AA193)) -> 810328.2294 | AB195: =IF(AB36="kw",SUMPRODUCT(N38:N193,O38:O193,AB38:AB193),SUMPRODUCT(D38:D193,AB38:AB193)) -> 0 | AC195: =IF(AC36="kw",SUMPRODUCT(N38:N193,O38:O193,AC38:AC193),SUMPRODUCT(D38:D193,AC38:AC193)) -> 0 | AD195: =IF(AD36="kw",SUMPRODUCT(N38:N193,O38:O193,AD38:AD193),SUMPRODUCT(D38:D193,AD38:AD193)) -> 0 | AE195: =IF(AE36="kw",SUMPRODUCT(N38:N193,O38:O193,AE38:AE193),SUMPRODUCT(D38:D193,AE38:AE193)) -> 0 | AF195: =IF(AF36="kw",SUMPRODUCT(N38:N193,O38:O193,AF38:AF193),SUMPRODUCT(D38:D193,AF38:AF193)) -> 0 | AG195: =IF(AG36="kw",SUMPRODUCT(N38:N193,O38:O193,AG38:AG193),SUMPRODUCT(D38:D193,AG38:AG193)) -> 0 | AH195: =IF(AH36="kw",SUMPRODUCT(N38:N193,O38:O193,AH38:AH193),SUMPRODUCT(D38:D193,AH38:AH193)) -> 0 | AI195: =IF(AI36="kw",SUMPRODUCT(N38:N193,O38:O193,AI38:AI193),SUMPRODUCT(D38:D193,AI38:AI193)) -> 0 | AJ195: =IF(AJ36="kw",SUMPRODUCT(N38:N193,O38:O193,AJ38:AJ193),SUMPRODUCT(D38:D193,AJ38:AJ193)) -> 0 | AK195: =IF(AK36="kw",SUMPRODUCT(N38:N193,O38:O193,AK38:AK193),SUMPRODUCT(D38:D193,AK38:AK193)) -> 0 | AL195: =IF(AL36="kw",SUMPRODUCT(N38:N193,O38:O193,AL38:AL193),SUMPRODUCT(D38:D193,AL38:AL193)) -> 0
B196: Forecast CDM Savings in 2015 | Y196: 1345003 | Z196: 543085 | AA196: 1346579 | AB196: 24666 | AC196: 4684 | AD196: 0 | AE196: 0 | AF196: 0 | AG196: 0 | AH196: 0 | AI196: 0 | AJ196: 0 | AK196: 0 | AL196: 0
B198: Distribution Rate in 2015 | Y198: 1 | Z198: 1 | AA198: 1 | AB198: 1 | AC198: 1 | AD198: 0 | AE198: 0 | AF198: 0 | AG198: 0 | AH198: 0 | AI198: 0 | AJ198: 0 | AK198: 0 | AL198: 0
B199: Lost Revenue in 2015 from 2011 programs | Y199: 233359.0292 | Z199: 183473.2046 | AA199: 206888.5417 | AB199: 0 | AC199: 0 | AD199: 0 | AE199: 0 | AF199: 0 | AG199: 0 | AH199: 0 | AI199: 0 | AJ199: 0 | AK199: 0 | AL199: 0 | AM199: =SUM(Y199:AL199) -> 623720.7754
B200: Lost Revenue in 2015 from 2012 programs | Y200: 181956.9353 | Z200: 553022.6617 | AA200: 860030.0927 | AB200: 0 | AC200: 0 | AD200: 0 | AE200: 0 | AF200: 0 | AG200: 0 | AH200: 0 | AI200: 0 | AJ200: 0 | AK200: 0 | AL200: 0 | AM200: =SUM(Y200:AL200) -> 1595009.69
B201: Lost Revenue in 2015 from 2013 programs | Y201: 177580.0396 | Z201: 799187.418 | AA201: 624924.9566 | AB201: 0 | AC201: 0 | AD201: 0 | AE201: 0 | AF201: 0 | AG201: 0 | AH201: 0 | AI201: 0 | AJ201: 0 | AK201: 0 | AL201: 0 | AM201: =SUM(Y201:AL201) -> 1601692.414
B202: Lost Revenue in 2015 from 2014 programs | Y202: 578637.4546 | Z202: 1210974.464 | AA202: 526057.5787 | AB202: 0 | AC202: 0 | AD202: 0 | AE202: 0 | AF202: 0 | AG202: 0 | AH202: 0 | AI202: 0 | AJ202: 0 | AK202: 0 | AL202: 0 | AM202: =SUM(Y202:AL202) -> 2315669.497
B203: Lost Revenue in 2015 from 2015 programs | Y203: =Y195*Y198 -> 588649.0549 | Z203: =Z195*Z198 -> 596194.4325 | AA203: =AA195*AA198 -> 810328.2294 | AB203: =AB195*AB198 -> 0 | AC203: 0 | AD203: 0 | AE203: 0 | AF203: 0 | AG203: 0 | AH203: 0 | AI203: 0 | AJ203: 0 | AK203: 0 | AL203: 0 | AM203: =SUM(Y203:AL203) -> 1995171.717
B204: Total Lost Revenues in 2015 | Y204: =SUM(Y199:Y203) -> 1760182.513 | Z204: =SUM(Z199:Z203) -> 3342852.18 | AA204: =SUM(AA199:AA203) -> 3028229.399 | AB204: 0 | AC204: 0 | AD204: 0 | AE204: 0 | AF204: =SUM(AF199:AF203) -> 0 | AG204: =SUM(AG199:AG203) -> 0 | AH204: =SUM(AH199:AH203) -> 0 | AI204: 0 | AJ204: 0 | AK204: 0 | AL204: 0 | AM204: =SUM(AM199:AM203) -> 8131264.093
B205: Forecast Lost Revenues in 2015 | Y205: =Y196*Y198 -> 1345003 | Z205: =Z196*Z198 -> 543085 | AA205: 1346579 | AB205: 24666 | AC205: 4684 | AD205: 0 | AE205: 0 | AF205: =AF196*AF198 -> 0 | AG205: =AG196*AG198 -> 0 | AH205: 0 | AI205: 0 | AJ205: 0 | AK205: 0 | AL205: 0 | AM205: =SUM(Y205:AL205) -> 3264017
B206: LRAMVA in 2015 | AM206: =AM204-AM205 -> 4867247.093
B208: 2015 Savings Persisting in 2016 | Y208: =SUMPRODUCT(E38:E193,Y38:Y193) -> 578989.8183 | Z208: =SUMPRODUCT(E38:E193,Z38:Z193) -> 569603.0953 | AA208: =IF(AA36="kw",SUMPRODUCT(N38:N193,P38:P193,AA38:AA193),SUMPRODUCT(E38:E193,AA38:AA193)) -> 810328.2294 | AB208: =IF(AB36="kw",SUMPRODUCT(N38:N193,P38:P193,AB38:AB193),SUMPRODUCT(E38:E193,AB38:AB193)) -> 0 | AC208: =IF(AC36="kw",SUMPRODUCT(N38:N193,P38:P193,AC38:AC193),SUMPRODUCT(E38:E193,AC38:AC193)) -> 0 | AD208: =IF(AD36="kw",SUMPRODUCT(N38:N193,P38:P193,AD38:AD193),SUMPRODUCT(E38:E193,AD38:AD193)) -> 0 | AE208: =IF(AE36="kw",SUMPRODUCT(N38:N193,P38:P193,AE38:AE193),SUMPRODUCT(E38:E193,AE38:AE193)) -> 0 | AF208: =IF(AF36="kw",SUMPRODUCT(N38:N193,P38:P193,AF38:AF193),SUMPRODUCT(E38:E193,AF38:AF193)) -> 0 | AG208: =IF(AG36="kw",SUMPRODUCT(N38:N193,P38:P193,AG38:AG193),SUMPRODUCT(E38:E193,AG38:AG193)) -> 0 | AH208: =IF(AH36="kw",SUMPRODUCT(N38:N193,P38:P193,AH38:AH193),SUMPRODUCT(E38:E193,AH38:AH193)) -> 0 | AI208: =IF(AI36="kw",SUMPRODUCT(N38:N193,P38:P193,AI38:AI193),SUMPRODUCT(E38:E193,AI38:AI193)) -> 0 | AJ208: =IF(AJ36="kw",SUMPRODUCT(N38:N193,P38:P193,AJ38:AJ193),SUMPRODUCT(E38:E193,AJ38:AJ193)) -> 0 | AK208: =IF(AK36="kw",SUMPRODUCT(N38:N193,P38:P193,AK38:AK193),SUMPRODUCT(E38:E193,AK38:AK193)) -> 0 | AL208: =IF(AL36="kw",SUMPRODUCT(N38:N193,P38:P193,AL38:AL193),SUMPRODUCT(E38:E193,AL38:AL193)) -> 0
B209: 2015 Savings Persisting in 2017 | Y209: =SUMPRODUCT(F38:F193,Y38:Y193) -> 578377.5112 | Z209: =SUMPRODUCT(F38:F193,Z38:Z193) -> 540951.0828 | AA209: =IF(AA36="kw",SUMPRODUCT(N38:N193,Q38:Q193,AA38:AA193),SUMPRODUCT(F38:F193,AA38:AA193)) -> 810328.5871 | AB209: =IF(AB36="kw",SUMPRODUCT(N38:N193,Q38:Q193,AB38:AB193),SUMPRODUCT(F38:F193,AB38:AB193)) -> 0 | AC209: =IF(AC36="kw",SUMPRODUCT(N38:N193,Q38:Q193,AC38:AC193),SUMPRODUCT(F38:F193,AC38:AC193)) -> 0 | AD209: =IF(AD36="kw",SUMPRODUCT(N38:N193,Q38:Q193,AD38:AD193),SUMPRODUCT(F38:F193,AD38:AD193)) -> 0 | AE209: =IF(AE36="kw",SUMPRODUCT(N38:N193,Q38:Q193,AE38:AE193),SUMPRODUCT(F38:F193,AE38:AE193)) -> 0 | AF209: =IF(AF36="kw",SUMPRODUCT(N38:N193,Q38:Q193,AF38:AF193),SUMPRODUCT(F38:F193,AF38:AF193)) -> 0 | AG209: =IF(AG36="kw",SUMPRODUCT(N38:N193,Q38:Q193,AG38:AG193),SUMPRODUCT(F38:F193,AG38:AG193)) -> 0 | AH209: =IF(AH36="kw",SUMPRODUCT(N38:N193,Q38:Q193,AH38:AH193),SUMPRODUCT(F38:F193,AH38:AH193)) -> 0 | AI209: =IF(AI36="kw",SUMPRODUCT(N38:N193,Q38:Q193,AI38:AI193),SUMPRODUCT(F38:F193,AI38:AI193)) -> 0 | AJ209: =IF(AJ36="kw",SUMPRODUCT(N38:N193,Q38:Q193,AJ38:AJ193),SUMPRODUCT(F38:F193,AJ38:AJ193)) -> 0 | AK209: =IF(AK36="kw",SUMPRODUCT(N38:N193,Q38:Q193,AK38:AK193),SUMPRODUCT(F38:F193,AK38:AK193)) -> 0 | AL209: =IF(AL36="kw",SUMPRODUCT(N38:N193,Q38:Q193,AL38:AL193),SUMPRODUCT(F38:F193,AL38:AL193)) -> 0
B210: 2015 Savings Persisting in 2018 | Y210: =SUMPRODUCT(G38:G193,Y38:Y193) -> 577660.7956 | Z210: =SUMPRODUCT(G38:G193,Z38:Z193) -> 553114.8149 | AA210: =IF(AA36="kw",SUMPRODUCT(N38:N193,R38:R193,AA38:AA193),SUMPRODUCT(G38:G193,AA38:AA193)) -> 823424.8549 | AB210: =IF(AB36="kw",SUMPRODUCT(N38:N193,R38:R193,AB38:AB193),SUMPRODUCT(G38:G193,AB38:AB193)) -> 0 | AC210: =IF(AC36="kw",SUMPRODUCT(N38:N193,R38:R193,AC38:AC193),SUMPRODUCT(G38:G193,AC38:AC193)) -> 0 | AD210: =IF(AD36="kw",SUMPRODUCT(N38:N193,R38:R193,AD38:AD193),SUMPRODUCT(G38:G193,AD38:AD193)) -> 0 | AE210: =IF(AE36="kw",SUMPRODUCT(N38:N193,R38:R193,AE38:AE193),SUMPRODUCT(G38:G193,AE38:AE193)) -> 0 | AF210: =IF(AF36="kw",SUMPRODUCT(N38:N193,R38:R193,AF38:AF193),SUMPRODUCT(G38:G193,AF38:AF193)) -> 0 | AG210: =IF(AG36="kw",SUMPRODUCT(N38:N193,R38:R193,AG38:AG193),SUMPRODUCT(G38:G193,AG38:AG193)) -> 0 | AH210: =IF(AH36="kw",SUMPRODUCT(N38:N193,R38:R193,AH38:AH193),SUMPRODUCT(G38:G193,AH38:AH193)) -> 0 | AI210: =IF(AI36="kw",SUMPRODUCT(N38:N193,R38:R193,AI38:AI193),SUMPRODUCT(G38:G193,AI38:AI193)) -> 0 | AJ210: =IF(AJ36="kw",SUMPRODUCT(N38:N193,R38:R193,AJ38:AJ193),SUMPRODUCT(G38:G193,AJ38:AJ193)) -> 0 | AK210: =IF(AK36="kw",SUMPRODUCT(N38:N193,R38:R193,AK38:AK193),SUMPRODUCT(G38:G193,AK38:AK193)) -> 0 | AL210: =IF(AL36="kw",SUMPRODUCT(N38:N193,R38:R193,AL38:AL193),SUMPRODUCT(G38:G193,AL38:AL193)) -> 0
B211: 2015 Savings Persisting in 2019 | Y211: =SUMPRODUCT(H38:H193,Y38:Y193) -> 572253.9582 | Z211: =SUMPRODUCT(H38:H193,Z38:Z193) -> 553114.8149 | AA211: =IF(AA36="kw",SUMPRODUCT(N38:N193,S38:S193,AA38:AA193),SUMPRODUCT(H38:H193,AA38:AA193)) -> 823424.8549 | AB211: =IF(AB36="kw",SUMPRODUCT(N38:N193,S38:S193,AB38:AB193),SUMPRODUCT(H38:H193,AB38:AB193)) -> 0 | AC211: =IF(AC36="kw",SUMPRODUCT(N38:N193,S38:S193,AC38:AC193),SUMPRODUCT(H38:H193,AC38:AC193)) -> 0 | AD211: =IF(AD36="kw",SUMPRODUCT(N38:N193,S38:S193,AD38:AD193),SUMPRODUCT(H38:H193,AD38:AD193)) -> 0 | AE211: =IF(AE36="kw",SUMPRODUCT(N38:N193,S38:S193,AE38:AE193),SUMPRODUCT(H38:H193,AE38:AE193)) -> 0 | AF211: =IF(AF36="kw",SUMPRODUCT(N38:N193,S38:S193,AF38:AF193),SUMPRODUCT(H38:H193,AF38:AF193)) -> 0 | AG211: =IF(AG36="kw",SUMPRODUCT(N38:N193,S38:S193,AG38:AG193),SUMPRODUCT(H38:H193,AG38:AG193)) -> 0 | AH211: =IF(AH36="kw",SUMPRODUCT(N38:N193,S38:S193,AH38:AH193),SUMPRODUCT(H38:H193,AH38:AH193)) -> 0 | AI211: =IF(AI36="kw",SUMPRODUCT(N38:N193,S38:S193,AI38:AI193),SUMPRODUCT(H38:H193,AI38:AI193)) -> 0 | AJ211: =IF(AJ36="kw",SUMPRODUCT(N38:N193,S38:S193,AJ38:AJ193),SUMPRODUCT(H38:H193,AJ38:AJ193)) -> 0 | AK211: =IF(AK36="kw",SUMPRODUCT(N38:N193,S38:S193,AK38:AK193),SUMPRODUCT(H38:H193,AK38:AK193)) -> 0 | AL211: =IF(AL36="kw",SUMPRODUCT(N38:N193,S38:S193,AL38:AL193),SUMPRODUCT(H38:H193,AL38:AL193)) -> 0
B212: 2015 Savings Persisting in 2020 | Y212: =SUMPRODUCT(I$38:I$193,$Y$38:$Y$193) -> 566149.3318 | Z212: =SUMPRODUCT(I$38:I$193,$Z$38:$Z$193) -> 553114.8149 | AA212: =IF(AA36="kw",SUMPRODUCT(N38:N193,T38:T193,AA38:AA193),SUMPRODUCT(I$38:I$193,$AA$38:$AA$193)) -> 823424.8549 | AB212: =IF(AB36="kw",SUMPRODUCT(N38:N193,T38:T193,AB38:AB193),SUMPRODUCT(I38:I193,AB38:AB193)) -> 0 | AC212: =IF(AC36="kw",SUMPRODUCT(N38:N193,T38:T193,AC38:AC193),SUMPRODUCT(I38:I193,AC38:AC193)) -> 0 | AD212: =IF(AD36="kw",SUMPRODUCT(N38:N193,T38:T193,AD38:AD193),SUMPRODUCT(I38:I193,AD38:AD193)) -> 0 | AE212: =IF(AE36="kw",SUMPRODUCT(N38:N193,T38:T193,AE38:AE193),SUMPRODUCT(I38:I193,AE38:AE193)) -> 0 | AF212: =IF(AF36="kw",SUMPRODUCT(N38:N193,T38:T193,AF38:AF193),SUMPRODUCT(I38:I193,AF38:AF193)) -> 0 | AG212: =IF(AG36="kw",SUMPRODUCT(N38:N193,T38:T193,AG38:AG193),SUMPRODUCT(I38:I193,AG38:AG193)) -> 0 | AH212: =IF(AH36="kw",SUMPRODUCT(N38:N193,T38:T193,AH38:AH193),SUMPRODUCT(I38:I193,AH38:AH193)) -> 0 | AI212: =IF(AI36="kw",SUMPRODUCT(N38:N193,T38:T193,AI38:AI193),SUMPRODUCT(I38:I193,AI38:AI193)) -> 0 | AJ212: =IF(AJ36="kw",SUMPRODUCT(N38:N193,T38:T193,AJ38:AJ193),SUMPRODUCT(I38:I193,AJ38:AJ193)) -> 0 | AK212: =IF(AK36="kw",SUMPRODUCT(N38:N193,T38:T193,AK38:AK193),SUMPRODUCT(I38:I193,AK38:AK193)) -> 0 | AL212: =IF(AL36="kw",SUMPRODUCT(N38:N193,T38:T193,AL38:AL193),SUMPRODUCT(I38:I193,AL38:AL193)) -> 0
B213: 2015 Savings Persisting in 2021 | Y213: =SUMPRODUCT(J$38:J$193,$Y$38:$Y$193) -> 565513.4434 | Z213: =SUMPRODUCT(J$38:J$193,$Z$38:$Z$193) -> 552293.9223 | AA213: =IF(AA37="kw",SUMPRODUCT(N39:N194,T39:T194,AA39:AA194),SUMPRODUCT(J$38:J$193,$AA$38:$AA$193)) -> 817674.9038
B214: 2015 Savings Persisting in 2022 | Y214: =SUMPRODUCT(K$38:K$193,$Y$38:$Y$193) -> 565332.1938 | Z214: =SUMPRODUCT(K$38:K$193,$Z$38:$Z$193) -> 552293.9598 | AA214: =IF(AA38="kw",SUMPRODUCT(N40:N195,T40:T195,AA40:AA195),SUMPRODUCT(K$38:K$193,$AA$38:$AA$193)) -> 817674.9441
B215: 2015 Savings Persisting in 2023 | Y215: =SUMPRODUCT(L$38:L$193,$Y$38:$Y$193) -> 560739.1642 | Z215: =SUMPRODUCT(L$38:L$193,$Z$38:$Z$193) -> 551304.0107 | AA215: =IF(AA39="kw",SUMPRODUCT(N41:N196,T41:T196,AA41:AA196),SUMPRODUCT(L$38:L$193,$AA$38:$AA$193)) -> 816609.1004
B216: Note: LDC to make note of key assumptions included above
B219: Table 5-b. 2016 Lost Revenues Work Form | D219: Return to top
B220: Program | C220: Results Status | D220: Net Energy Savings (kWh) | E220: Net Energy Savings Persistence (kWh) | N220: Monthly Multiplier | O220: Net Demand Savings (kW) | P220: Net Peak Demand Savings Persistence (kW) | Y220: Rate Allocations for LRAMVA
D221: 2016 | E221: 2017 | F221: 2018 | G221: 2019 | H221: 2020 | I221: 2021 | J221: 2022 | K221: 2023 | L221: 2024 | M221: 2025 | O221: 2016 | P221: 2017 | Q221: 2018 | R221: 2019 | S221: 2020 | T221: 2021 | U221: 2022 | V221: 2023 | W221: 2024 | X221: 2025 | Y221: Residential | Z221: GS<50 kW | AA221: GS>50 kW | AB221: Streetlights | AC221: Unmetered Scattered Load | AM221: Total
B222: Legacy Framework | Y222: kWh | Z222: kWh | AA222: kWh | AB222: kWh | AC222: kWh | AD222: 0 | AE222: 0 | AF222: 0 | AG222: 0 | AH222: 0 | AI222: 0 | AJ222: 0 | AK222: 0 | AL222: 0
B223: Residential Program
A224: 1 | B224: Coupon Initiative | C224: Verified | AM224: =SUM(Y224:AL224) -> 0
B225: Adjustment to 2016 savings | C225: True-up | Y225: =Y224 -> 0 | Z225: =Z224 -> 0 | AA225: 0 | AB225: 0 | AC225: 0 | AD225: 0 | AE225: 0 | AF225: 0 | AG225: 0 | AH225: 0 | AI225: 0 | AJ225: 0 | AK225: 0 | AL225: 0
A227: 2 | B227: Bi-Annual Retailer Event Initiative | C227: Verified | AM227: =SUM(Y227:AL227) -> 0
B228: Adjustment to 2016 savings | C228: True-up | Y228: =Y227 -> 0 | Z228: =Z227 -> 0 | AA228: 0 | AB228: 0 | AC228: 0 | AD228: 0 | AE228: 0 | AF228: 0 | AG228: 0 | AH228: 0 | AI228: 0 | AJ228: 0 | AK228: 0 | AL228: 0
A230: 3 | B230: Appliance Retirement Initiative | C230: Verified | AM230: =SUM(Y230:AL230) -> 0
B231: Adjustment to 2016 savings | C231: True-up | Y231: =Y230 -> 0 | Z231: =Z230 -> 0 | AA231: 0 | AB231: 0 | AC231: 0 | AD231: 0 | AE231: 0 | AF231: 0 | AG231: 0 | AH231: 0 | AI231: 0 | AJ231: 0 | AK231: 0 | AL231: 0
A233: 4 | B233: HVAC Incentives Initiative | C233: Verified | AM233: =SUM(Y233:AL233) -> 0
B234: Adjustment to 2016 savings | C234: True-up | Y234: =Y233 -> 0 | Z234: =Z233 -> 0 | AA234: 0 | AB234: 0 | AC234: 0 | AD234: 0 | AE234: 0 | AF234: 0 | AG234: 0 | AH234: 0 | AI234: 0 | AJ234: 0 | AK234: 0 | AL234: 0
A236: 5 | B236: Residential New Construction and Major Renovation Initiative | C236: Verified | AM236: =SUM(Y236:AL236) -> 0
B237: Adjustment to 2016 savings | C237: True-up | Y237: =Y236 -> 0 | Z237: =Z236 -> 0 | AA237: 0 | AB237: 0 | AC237: 0 | AD237: 0 | AE237: 0 | AF237: 0 | AG237: 0 | AH237: 0 | AI237: 0 | AJ237: 0 | AK237: 0 | AL237: 0
B239: Commercial & Institutional Program
A240: 6 | B240: Energy Audit Initiative | C240: Verified | N240: 12 | AM240: =SUM(Y240:AL240) -> 0
B241: Adjustment to 2016 savings | C241: True-up | N241: =N240 -> 12 | Y241: =Y240 -> 0 | Z241: =Z240 -> 0 | AA241: 0 | AB241: 0 | AC241: 0 | AD241: 0 | AE241: 0 | AF241: 0 | AG241: 0 | AH241: 0 | AI241: 0 | AJ241: 0 | AK241: 0 | AL241: 0
A243: 7 | B243: Efficiency: Equipment Replacement Incentive Initiative | C243: Verified | N243: 12 | AM243: =SUM(Y243:AL243) -> 0
B244: Adjustment to 2016 savings | C244: True-up | N244: =N243 -> 12 | Y244: =Y243 -> 0 | Z244: =Z243 -> 0 | AA244: 0 | AB244: 0 | AC244: 0 | AD244: 0 | AE244: 0 | AF244: 0 | AG244: 0 | AH244: 0 | AI244: 0 | AJ244: 0 | AK244: 0 | AL244: 0
A246: 8 | B246: Direct Install Lighting and Water Heating Initiative | C246: Verified | N246: 12 | AM246: =SUM(Y246:AL246) -> 0
B247: Adjustment to 2016 savings | C247: True-up | N247: =N246 -> 12 | Y247: =Y246 -> 0 | Z247: =Z246 -> 0 | AA247: 0 | AB247: 0 | AC247: 0 | AD247: 0 | AE247: 0 | AF247: 0 | AG247: 0 | AH247: 0 | AI247: 0 | AJ247: 0 | AK247: 0 | AL247: 0
A249: 9 | B249: New Construction and Major Renovation Initiative | C249: Verified | N249: 12 | AM249: =SUM(Y249:AL249) -> 0
B250: Adjustment to 2016 savings | C250: True-up | N250: =N249 -> 12 | Y250: =Y249 -> 0 | Z250: =Z249 -> 0 | AA250: 0 | AB250: 0 | AC250: 0 | AD250: 0 | AE250: 0 | AF250: 0 | AG250: 0 | AH250: 0 | AI250: 0 | AJ250: 0 | AK250: 0 | AL250: 0
A252: 10 | B252: Existing Building Commissioning Incentive Initiative | C252: Verified | N252: 3 | AM252: =SUM(Y252:AL252) -> 0
B253: Adjustment to 2016 savings | C253: True-up | N253: =N252 -> 3 | Y253: =Y252 -> 0 | Z253: =Z252 -> 0 | AA253: 0 | AB253: 0 | AC253: 0 | AD253: 0 | AE253: 0 | AF253: 0 | AG253: 0 | AH253: 0 | AI253: 0 | AJ253: 0 | AK253: 0 | AL253: 0
B255: Industrial Program
A256: 11 | B256: Process and Systems Upgrades Initiatives - Project Incentive Initiative | C256: Verified | N256: 12 | AM256: =SUM(Y256:AL256) -> 0
B257: Adjustment to 2016 savings | C257: True-up | N257: =N256 -> 12 | Y257: =Y256 -> 0 | Z257: =Z256 -> 0 | AA257: 0 | AB257: 0 | AC257: 0 | AD257: 0 | AE257: 0 | AF257: 0 | AG257: 0 | AH257: 0 | AI257: 0 | AJ257: 0 | AK257: 0 | AL257: 0
A259: 12 | B259: Process and Systems Upgrades Initiatives - Monitoring and Targeting Initiative | C259: Verified | N259: 12 | AM259: =SUM(Y259:AL259) -> 0
B260: Adjustment to 2016 savings | C260: True-up | N260: =N259 -> 12 | Y260: =Y259 -> 0 | Z260: =Z259 -> 0 | AA260: 0 | AB260: 0 | AC260: 0 | AD260: 0 | AE260: 0 | AF260: 0 | AG260: 0 | AH260: 0 | AI260: 0 | AJ260: 0 | AK260: 0 | AL260: 0
A262: 13 | B262: Process and Systems Upgrades Initiatives - Energy Manager Initiative | C262: Verified | N262: 12 | AM262: =SUM(Y262:AL262) -> 0
B263: Adjustment to 2016 savings | C263: True-up | N263: =N262 -> 12 | Y263: =Y262 -> 0 | Z263: =Z262 -> 0 | AA263: 0 | AB263: 0 | AC263: 0 | AD263: 0 | AE263: 0 | AF263: 0 | AG263: 0 | AH263: 0 | AI263: 0 | AJ263: 0 | AK263: 0 | AL263: 0
B265: Low Income Program
A266: 14 | B266: Low Income Initiative | C266: Verified | N266: 12 | AM266: =SUM(Y266:AL266) -> 0
B267: Adjustment to 2016 savings | C267: True-up | N267: =N266 -> 12 | Y267: =Y266 -> 0 | Z267: =Z266 -> 0 | AA267: 0 | AB267: 0 | AC267: 0 | AD267: 0 | AE267: 0 | AF267: 0 | AG267: 0 | AH267: 0 | AI267: 0 | AJ267: 0 | AK267: 0 | AL267: 0
B269: Other
A270: 15 | B270: Aboriginal Conservation Program | C270: Verified | N270: 0 | AM270: =SUM(Y270:AL270) -> 0
B271: Adjustment to 2016 savings | C271: True-up | N271: =N270 -> 0 | Y271: =Y270 -> 0 | Z271: =Z270 -> 0 | AA271: 0 | AB271: 0 | AC271: 0 | AD271: 0 | AE271: 0 | AF271: 0 | AG271: 0 | AH271: 0 | AI271: 0 | AJ271: 0 | AK271: 0 | AL271: 0
A273: 16 | B273: Program Enabled Savings | C273: Verified | N273: 0 | AM273: =SUM(Y273:AL273) -> 0
B274: Adjustment to 2016 savings | C274: True-up | N274: =N273 -> 0 | Y274: =Y273 -> 0 | Z274: =Z273 -> 0 | AA274: 0 | AB274: 0 | AC274: 0 | AD274: 0 | AE274: 0 | AF274: 0 | AG274: 0 | AH274: 0 | AI274: 0 | AJ274: 0 | AK274: 0 | AL274: 0
B276: Conservation Fund Pilots
A277: 17 | B277: Conservation Fund Pilot - EnerNOC | C277: Verified | N277: 0 | AM277: =SUM(Y277:AL277) -> 0
B278: Adjustment to 2016 savings | C278: True-up | N278: =N277 -> 0 | Y278: =Y277 -> 0 | Z278: =Z277 -> 0 | AA278: 0 | AB278: 0 | AC278: 0 | AD278: 0 | AE278: 0 | AF278: 0 | AG278: 0 | AH278: 0 | AI278: 0 | AJ278: 0 | AK278: 0 | AL278: 0
A280: 18 | B280: Loblaws Pilot | C280: Verified | D280: 535 | E280: 535 | F280: 535 | G280: 535 | H280: 535 | I280: 535 | J280: 535 | K280: 535 | L280: 535 | M280: 535 | N280: 0 | O280: 0 | P280: 0 | Q280: 0 | R280: 0 | S280: 0 | T280: 0 | U280: 0 | V280: 0 | W280: 0 | X280: 0 | AM280: =SUM(Y280:AL280) -> 0
B281: Adjustment to 2016 savings | C281: True-up | D281: 0 | E281: 0 | F281: 0 | G281: 0 | H281: 0 | I281: 0 | J281: 0 | K281: 0 | L281: 0 | M281: 0 | N281: =N280 -> 0 | O281: 0 | P281: 0 | Q281: 0 | R281: 0 | S281: 0 | T281: 0 | U281: 0 | V281: 0 | W281: 0 | X281: 0 | Y281: =Y280 -> 0 | Z281: =Z280 -> 0 | AA281: 0 | AB281: 0 | AC281: 0 | AD281: 0 | AE281: 0 | AF281: 0 | AG281: 0 | AH281: 0 | AI281: 0 | AJ281: 0 | AK281: 0 | AL281: 0
A283: 19 | B283: Conservation Fund Pilot - SEG | C283: Verified | N283: 0 | AM283: =SUM(Y283:AL283) -> 0
B284: Adjustment to 2016 savings | C284: True-up | N284: =N283 -> 0 | Y284: =Y283 -> 0 | Z284: =Z283 -> 0 | AA284: 0 | AB284: 0 | AC284: 0 | AD284: 0 | AE284: 0 | AF284: 0 | AG284: 0 | AH284: 0 | AI284: 0 | AJ284: 0 | AK284: 0 | AL284: 0
A286: 20 | B286: Social Benchmarking Pliot | C286: Verified | N286: 0 | AM286: =SUM(Y286:AL286) -> 0
B287: Adjustment to 2016 savings | C287: True-up | N287: =N286 -> 0 | Y287: =Y286 -> 0 | Z287: =Z286 -> 0 | AA287: 0 | AB287: 0 | AC287: 0 | AD287: 0 | AE287: 0 | AF287: 0 | AG287: 0 | AH287: 0 | AI287: 0 | AJ287: 0 | AK287: 0 | AL287: 0
B289: Conservation First Framework | N289: 0
B290: Residential Province-Wide Programs | N290: =N289 -> 0 | Y290: =Y289 -> 0 | Z290: 0 | AA290: 0
A291: 21 | B291: Save on Energy Coupon Program | C291: Verified | AM291: =SUM(Y291:AL291) -> 0
... 613 more rows
